Workbook

Sheet Inputs
A1: INDIVIDUAL MATERIAL INPUTS
A2: CELLS WITH SHADED PATTERN WILL BE LOCKED IN LATER VERSIONS
A4: Material | B4: Tonnage Data | D4: Gross Costs | E4: Revenue | F4: Net System Costs | G4: Recycling Rates | I4: Relative Contribution of Cost Component Categories
B5: Generation (Sheet 1) | C5: Recovery (Sheet 1) | D5: (tonnes) | E5: (tonnes) | F5: (tonnes) | G5: (%) | I5: Collection | J5: Processing | K5: Depot/Transfer Station | L5: P&E | M5: Admin | N5: Interest on MC
B6: (tonnes) | C6: (tonnes) | I6: 0.5410434835 | J6: 0.3129070886 | K6: 0.07134360603 | L6: 0.02053739703 | M6: 0.01857873045 | N6: 0.03558969444
A7: Newsprint - CNA/OCNA | B7: 189766.6459 | C7: 179222.6604 | D7: 184.4202987 | E7: 67.50188459 | F7: =D7-E7 -> 116.9184141 | G7: =C7/B7 -> 0.9444370985
A8: Newsprint - Non-CNA/OCNA | B8: 125512.5656 | C8: 118538.7233 | D8: 184.4202987 | E8: 67.50188459 | F8: =D8-E8 -> 116.9184141 | G8: =C8/B8 -> 0.9444370985
A9: Magazines and Catalogues | B9: 70950.84472 | C9: 55947.16927 | D9: 184.4202987 | E9: 67.50188459 | F9: =D9-E9 -> 116.9184141 | G9: 0.7885342238
A10: Telephone Books | B10: 8011.880339 | C10: 7851.642732 | D10: 194.5097777 | E10: 68.80582775 | F10: =D10-E10 -> 125.7039499 | G10: 0.98
A11: Other Printed Paper | B11: 118427.4189 | C11: 62955.15859 | D11: 194.7786012 | E11: 68.17457461 | F11: =D11-E11 -> 126.6040265 | G11: 0.5315927611
A13: Corrugated Cardboard | B13: 153008.8896 | C13: 149485.4319 | D13: 487.8055779 | E13: 98.16660375 | F13: =D13-E13 -> 389.6389741 | G13: 0.976972203
A14: Boxboard | B14: 165973.6682 | C14: 76754.81037 | D14: 300.7100604 | E14: 73.60304998 | F14: =D14-E14 -> 227.1070104 | G14: 0.4624517323
A15: Gable Top Cartons | B15: 15851.81315 | C15: 8222.502602 | D15: 1175.575772 | E15: 77.66017263 | F15: =D15-E15 -> 1097.9156 | G15: 0.5187105426 | I15: Goal Recycling Rate: | K15: 0.7
A16: Paper Laminates | B16: 40881.18656 | C16: 3140.35568 | D16: 1080.195276 | E16: 0 | F16: =D16-E16 -> 1080.195276 | G16: 0.07681664709
A17: Aseptic Containers | B17: 6114.296 | C17: 1296.236114 | D17: 1080.195276 | E17: 76.84695162 | F17: =D17-E17 -> 1003.348325 | G17: 0.212000877
A19: PET Bottles | B19: 55506.60784 | C19: 36551.40092 | D19: 1321.504121 | E19: 339.1096505 | F19: =D19-E19 -> 982.3944705 | G19: 0.6585053986
A20: HDPE Bottles | B20: 29394.54065 | C20: 15469.02239 | D20: 1228.981892 | E20: 462.6616881 | F20: 766.320204 | G20: 0.5262549456 | I20: Collection Threshold: | L20: DISPOSAL SCENARIO
A21: Plastic Film | B21: 58045.03935 | C21: 6308.438708 | D21: 2511.308283 | E21: 29.35506088 | F21: 2481.953222 | G21: 0.1086817888 | I21: 860
A22: Plastic Laminates | B22: 36088.30012 | C22: 955.3612325 | D22: 2467.76382 | E22: 0 | F22: 2467.76382 | G22: 0.02647287984 | L22: Cost of Collection + Disposal (per tonne)
A23: Polystyrene | B23: 22679.14044 | C23: 1423.101471 | D23: 1782.372733 | E23: 105.525301 | F23: 1676.847432 | G23: 0.06274935661 | I23: *Relative to existing system | L23: Total Tonnes Available for Disposal | N23: =(B36-C36) -> 477426.095
A24: Other Plastics | B24: 85232.99361 | C24: 28393.91289 | D24: 1383.293397 | E24: 181.0069698 | F24: 1202.286428 | G24: 0.333132883 | I24: Savings (Gross) | K24: =Sheet10!A78-Inputs!F47 -> -0.002560436726 | L24: Additional Tonnes Available for Disposal: | N24: =K31 -> -0.2474113205
I25: Savings (Net Cost) | K25: =Sheet10!A79-Inputs!F48 -> -0.001576095819 | L25: Cost of collecting additional Material | N25: =N24*N22 -> 0
A26: Steel Food & Beverage Cans | B26: 41440.498 | C26: 30070.76204 | D26: 358.6575833 | E26: 248.3861874 | F26: =D26-E26 -> 110.2713959 | G26: 0.7256370818 | I26: Savings expressed on per tonne (NC) | K26: =K25/K31 -> 0.00637034642 | L26: Cost of collecting all material | N26: =N23*N22 -> 0
A27: Steel Aerosols | B27: 3766.002302 | C27: 680.3963706 | D27: 358.6575833 | E27: 248.3861874 | F27: =D27-E27 -> 110.2713959 | G27: 0.1806680708 | I27: Savings to Industry | K27: =Sheet10!A85-Inputs!F51 -> -0.0007880479097
A28: Steel Paint Cans | B28: 4614.595162 | C28: 292.4517894 | D28: 358.6575833 | E28: 248.3861874 | F28: =D28-E28 -> 110.2713959 | G28: 0.06337539463 | I28: Savings to Municipalities | K28: =Sheet10!A86-Inputs!F52 -> -0.0007880479097 | L28: SCENARIO TESTING
I29: Municipal Net Cost Per Tonne | K29: =F36*(1-C50) -> 143.5759902
A30: Aluminum Food & Beverage Cans | B30: 21836.81604 | C30: 10640.57194 | D30: 1131.934567 | E30: 1390.399447 | F30: =D30-E30 -> -258.4648802 | G30: 0.4872767127
A31: Other Aluminum Packaging | B31: 4310.955409 | C31: 221.3285009 | D31: 1131.934567 | E31: 1390.399447 | F31: =D31-E31 -> -258.4648802 | G31: 0.05134093952 | I31: Decrease in recovered Tonnes: | K31: =Sheet10!A81-Inputs!C36 -> -0.2474113205 | L31: 2
I32: Decrease in recycling rate (system) | K32: =-(Sheet10!A83-Inputs!F44) -> 4.8962156e-05 | L32: =IF(L31=1,CONCATENATE("Scenario 1 models a situation where stewards who generate material not managed"," in the Blue Box system provide a transfer payment equal to their share of all material generated in the province"," multiplied by the gross costs of managing the Blue Box system.","These funds are then applied against the costs of managing the program, thereby subsidizing costs for both stewards and municipalities"),IF(L31=2,CONCATENATE("Scenario 2 models a situation where stewards who generate material not managed"," in the Blue Box system provide a transfer payment equal to their share of all material generated in the province"," multiplied by the net costs of managing the Blue Box system.","These funds are then applied against the costs of managing the program, thereby subsidizing costs for both stewards and municipalities"),CONCATENATE("Scenario 3 models a situation where stewards who generate material not managed"," in the Blue Box system reimburse municipalities for the cost of additional material going to landfill and provide a transfer payment to municipalities equal to the costs of managing said material within the exising system"))) -> Scenario 2 models a situation where stewards who generate material not managed in the Blue Box system provide a transfer payment equal to their share of all material generated in the province multiplied by the net costs of managing the Blue Box system.These funds are then applied against the costs of managing the program, thereby subsidizing costs for both stewards and municipalities
A33: Clear Glass | B33: 78947.2212 | C33: 70053.83995 | D33: 144.5129587 | E33: 16.67381139 | F33: =D33-E33 -> 127.8391473 | G33: 0.8873502942
A34: Coloured Glass | B34: 25568.42339 | C34: 20028.96819 | D34: 135.5582953 | E34: 15.47668297 | F34: =D34-E34 -> 120.0816123 | G34: 0.7833477992
A36: Total | B36: =SUM(B7:B34) -> 1361930.342 | C36: =SUM(C7:C34) -> 884504.2474 | D36: =SUMPRODUCT(D7:D34,C7:C34)/SUM(C7:C34) -> 399.17875 | E36: =SUMPRODUCT(E7:E34,C7:C34)/SUM(C7:C34) -> 112.0267696 | F36: =D36-E36 -> 287.1519804 | G36: =C36/B36 -> 0.6494489622
J42: GRAPH OF PRE AND POST THRESHOLD COSTS
A43: Baseline | D43: Modeled Scenario | G43: Difference | I43: Gross System Cost | J43: =C47 -> 353075299.9 | K43: =F47 -> 353075299.9
A44: Current Recycling Rate: | C44: =Sheet10!$B$30 -> 0.6494489622 | D44: Current Recycling Rate: | F44: =C36/B36 -> 0.6494489622 | G44: =F44-C44 -> 0 | I44: Net System Cost | J44: =C48 -> 253987146.3 | K44: =F48 -> 253987146.3
I45: Gross Collection Costs | J45: =C57 -> 191029090.2 | K45: =F57 -> 191029090.2
I46: Gross Processing Costs | J46: =C58 -> 110479764.1 | K46: =F58 -> 110479764.1
A47: Gross System Cost | C47: =Sheet10!$C$29 -> 353075299.9 | D47: Gross System Cost | F47: =SUMPRODUCT(D7:D34,C7:C34) -> 353075299.9 | G47: =F47-C47 -> 0 | I47: Gross Depot/Transfer Station Costs | J47: =C59 -> 25189665.09 | K47: 25189665.09
A48: Net System Cost | C48: =C47-C49 -> 253987146.3 | D48: Net System Cost | F48: =SUMPRODUCT(F7:F34,C7:C34) -> 253987146.3 | G48: =F48-C48 -> 0
A49: Revenue | C49: =Sheet10!$D$29 -> 99088153.53 | D49: Revenue | F49: =SUMPRODUCT(E7:E34,C7:C34) -> 99088153.53 | G49: =F49-C49 -> 0
A50: Industry Share of Cost | C50: 0.5 | D50: Industry Share of Cost | F50: 0.5
A51: Cost to Industry | C51: =C48*$C$50 -> 126993573.2 | D51: Cost to Industry | F51: =F48*$C$50 -> 126993573.2 | G51: =F51-C51 -> 0
A52: Cost to Municipalities | C52: =C48*(1-C50) -> 126993573.2 | D52: Cost to Municipalities | F52: =F48*(1-F50) -> 126993573.2 | G52: =F52-C52 -> 0
A54: Common Costs* | C54: ='Common Costs'!C38 -> 4989415 | D54: Common Costs* | F54: ='Common Costs'!C38 -> 4989415
D55: Common Costs to be Redistributed | F55: ='Common Costs'!C37 -> 0
A57: Gross Collection Costs | C57: =C47*I6 -> 191029090.2 | D57: Gross Collection Costs | F57: =F47*I6 -> 191029090.2 | G57: =F57-C57 -> 0
A58: Gross Processing Costs | C58: =C47*J6 -> 110479764.1 | D58: Gross Processing Costs | F58: =F47*J6 -> 110479764.1 | G58: 0
A59: Gross Depot/Transfer Station Costs | C59: =C47*K6 -> 25189665.09 | D59: Gross Depot/Transfer Station Costs | F59: =F47*K6 -> 25189665.09 | G59: 0
A60: Gross Promotion and Education Costs | C60: =C47*L6 -> 7251247.614 | D60: Gross Promotion and Education Costs | F60: =F47*L6 -> 7251247.614 | G60: 0
A61: Gross Administration Costs | C61: =C47*M6 -> 6559690.823 | D61: Gross Administration Costs | F61: =F47*M6 -> 6559690.823 | G61: 0
A62: Gross Interest on Municipal Capital Costs | C62: =C47*N6 -> 12565842.04 | D62: Gross Interest on Municipal Capital Costs | F62: =F47*N6 -> 12565842.04 | G62: 0

Sheet Growth Trends (hidden)
A3: Category | B3: Material | C3: 2005 Quantity Generated | D3: 2006 Quantity Generated | E3: 2007 Quantity Generated | F3: 2008 Quantity Generated | G3: 2009 Quantity Generated | H3: 2010 Quantity Generated | I3: 2011 Quantity Generated | J3: 2012 Quantity Generated | K3: 2013 Quantity Generated | L3: 2014 Quantity Generated | M3: 2015 Quantity Generated | N3: 2016 Quantity Generated | O3: 2017 Quantity Generated | P3: 2018 Quantity Generated | Q3: 2019 Quantity Generated
C4: (tonnes) | D4: (tonnes) | E4: (tonnes) | F4: (tonnes) | G4: (tonnes) | H4: (tonnes) | I4: (tonnes) | J4: (tonnes) | K4: (tonnes) | L4: (tonnes) | M4: (tonnes) | N4: (tonnes) | O4: (tonnes) | P4: (tonnes) | Q4: (tonnes)
A5: PRINTED PAPER
B6: Newsprint - CNA/OCNA | C6: 264800 | D6: 283482.9574 | E6: 268224.0016 | F6: 259569.7962 | G6: 269247.1196 | H6: 255784.7636 | I6: 226369.5158 | J6: 212787.8 | K6: 213799.6934 | L6: 217374.8181 | M6: 203648.9236 | N6: 195740.7194 | O6: 187832.5152 | P6: 179924.311 | Q6: 172016.1068
B7: Newsprint - Non-CNA/OCNA | C7: 136400 | D7: 134698.7691 | E7: 128557.0658 | F7: 124409.1922 | G7: 129047.436 | H7: 125176.0129 | I7: 110780.7715 | J7: 117427.86 | K7: 145964.584 | L7: 148405.3807 | M7: 132970.2544 | N7: 133494.5358 | O7: 134018.8171 | P7: 134543.0984 | Q7: 135067.3797
B8: Magazines and Catalogues | C8: 95100 | D8: 96349.2427 | E8: 97267.03552 | F8: 89652.60294 | G8: 91111.66274 | H8: 91339.4419 | I8: 85585.05706 | J8: 83017.45 | K8: 78941.77287 | L8: 78908.18384 | M8: 77033.86428 | N8: 74907.79506 | O8: 72781.72585 | P8: 70655.65663 | Q8: 68529.58742
B9: Telephone Books | C9: 15000 | D9: 16089.739 | E9: 21089.63886 | F9: 14431.04237 | G9: 19932.50918 | H9: 15391.627 | I9: 13852.4643 | J9: 10389 | K9: 9002.460688 | L9: 8328.91624 | M9: 8703.056007 | N9: 7676.204415 | O9: 6649.352822 | P9: 5622.50123 | Q9: 4595.649638
B10: Other Printed Paper | C10: 127800 | D10: 129368.3886 | E10: 122082.0833 | F10: 117200.0499 | G10: 120303.4615 | H10: 121205.7374 | I10: 118781.6227 | J10: 114030.72 | K10: 125433.792 | L10: 128244.9524 | M10: 120506.8332 | N10: 120154.4246 | O10: 119802.0159 | P10: 119449.6073 | Q10: 119097.1986
A11: Printed Paper Total | C11: 639100 | D11: 659989.0968 | E11: 637219.8251 | F11: 605262.6836 | G11: 629642.189 | H11: 608897.5829 | I11: 555369.4313 | J11: 537652.83 | K11: 573142.3029 | L11: 581262.2513 | M11: 542862.9315 | N11: 531973.6792 | O11: 521084.4269 | P11: 510195.1745 | Q11: 499305.9222
A13: PACKAGING
A14: Paper Based Packaging | B14: Corrugated Cardboard | C14: 140000 | D14: 141800 | E14: 165706.1837 | F14: 162845.6933 | G14: 162846.526 | H14: 169170.4194 | I14: 173399.6798 | J14: 171666 | K14: 173382.66 | L14: 169360.6425 | M14: 181454.7584 | N14: 184806.9361 | O14: 188159.1139 | P14: 191511.2917 | Q14: 194863.4695
B15: Boxboard | C15: 130500 | D15: 132200 | E15: 127388.2184 | F15: 123773.5515 | G15: 127665.9472 | H15: 130538.431 | I15: 127274.9703 | J15: 128547.75 | K15: 157200.9265 | L15: 163987.5138 | M15: 151426.6811 | N15: 154430.1266 | O15: 157433.5721 | P15: 160437.0176 | Q15: 163440.4631
B16: Gable Top Cartons | C16: 42000 | D16: 42500 | E16: 37673.00038 | F16: 37093.50868 | G16: 38387.39431 | H16: 39289.49807 | I16: 38503.70811 | J16: 40429.2 | K16: 14221.14687 | L16: 14248.79104 | M16: 20141.31967 | N16: 17542.53693 | O16: 14943.75418 | P16: 12344.97144 | Q16: 9746.188701
B17: Paper Laminants | C17: 2800 | D17: 2800 | E17: 3543.285095 | F17: 3412.817898 | G17: 3940.597531 | H17: 4252.201573 | I17: 4082.11351 | J17: 4245.28 | K17: 41844.222 | L17: 39205.14414 | M17: 31238.7434 | N17: 34916.23016 | O17: 38593.71693 | P17: 42271.2037 | Q17: 45948.69047
B18: Aseptic Containers | C18: 12800 | D18: 12900 | E18: 15145.08691 | F18: 14433.37452 | G18: 14835.54606 | H18: 15184.18139 | I18: 14637.55086 | J18: 14198.86 | K18: 4980.8157 | L18: 5819.7309 | M18: 8425.958561 | N18: 7686.402911 | O18: 6946.847261 | P18: 6207.291612 | Q18: 5467.735962
A19: Paper Packaging Total | C19: 328100 | D19: 332200 | E19: 349455.7745 | F19: 341558.9458 | G19: 347676.0111 | H19: 358434.7314 | I19: 357898.0226 | J19: 359087.09 | K19: 391629.7711 | L19: 392621.8223 | M19: 392687.4611 | N19: 399382.2328 | O19: 406077.0044 | P19: 412771.7761 | Q19: 419466.5478
A20: Plastic Packaging | B20: PET Bottles | C20: 36200 | D20: 36700 | E20: 45362.03455 | F20: 47211.14993 | G20: 49024.51297 | H20: 49503.07425 | I20: 44552.76682 | J20: 46335.12 | K20: 56400.5001 | L20: 56847.71114 | M20: 57517.07832 | N20: 59463.14947 | O20: 61409.22062 | P20: 63355.29177 | Q20: 65301.36293
B21: HDPE Bottles | C21: 23000 | D21: 23300 | E21: 25688.81933 | F21: 25993.84524 | G21: 26743.96153 | H21: 27372.44463 | I21: 26551.27129 | J21: 27347.53 | K21: 27894.4806 | L21: 27597.63419 | M21: 28953.47823 | N21: 29463.3836 | O21: 29973.28898 | P21: 30483.19435 | Q21: 30993.09972
B22: Plastic Film | C22: 53700 | D22: 54400 | E22: 61615.89948 | F22: 60099.39489 | G22: 59213.14189 | H22: 60604.65072 | I22: 53029.06938 | J22: 48786.68 | K22: 52000.02968 | L22: 54382.76276 | M22: 52629.14646 | N22: 52055.68893 | O22: 51482.2314 | P22: 50908.77387 | Q22: 50335.31634
B23: Plastic Laminants | C23: 57400 | D23: 58100 | E23: 25612.96757 | F23: 26805.18366 | G23: 29186.4796 | H23: 30062.36187 | I23: 32317.03901 | J23: 33609.68 | K23: 34954.0672 | L23: 35391.33064 | M23: 26253.75951 | N23: 24419.18652 | O23: 22584.61353 | P23: 20750.04054 | Q23: 18915.46755
B24: Polystyrene | C24: 20400 | D24: 20600 | E24: 22543.68704 | F24: 21381.22012 | G24: 21970.85318 | H24: 22465.19738 | I24: 20780.30758 | J24: 21195.6 | K24: 21619.512 | L24: 21391.0016 | M24: 21701.63022 | N24: 21750.15609 | O24: 21798.68197 | P24: 21847.20785 | Q24: 21895.73372
B25: Other Plastics | C25: 28300 | D25: 28600 | E25: 44939.16685 | F25: 49798.08552 | G25: 53355.96817 | H25: 54610.83342 | I25: 57887.48343 | J25: 55571.52 | K25: 67133.0381 | L25: 70790.314 | M25: 75459.60486 | N25: 79888.87103 | O25: 84318.1372 | P25: 88747.40336 | Q25: 93176.66953
A26: Plastics Total | C26: 219000 | D26: 221700 | E26: 225762.5748 | F26: 231288.8794 | G26: 239494.9173 | H26: 244618.5623 | I26: 235117.9375 | J26: 232846.13 | K26: 260001.6277 | L26: 266400.7543 | M26: 262514.6976 | N26: 267040.4357 | O26: 271566.1737 | P26: 276091.9117 | Q26: 280617.6498
A27: Steel Packaging | B27: Steel Food & Beverage Cans | C27: 57800 | D27: 58500 | E27: 47494.57379 | F27: 48292.35396 | G27: 49351.17183 | H27: 50800.19527 | I27: 47244.1816 | J27: 47716.44 | K27: 46762.1112 | L27: 45285.5356 | M27: 43411.93753 | N27: 42227.80684 | O27: 41043.67615 | P27: 39859.54546 | Q27: 38675.41477
B28: Steel Aerosols | C28: 4300 | D28: 4400 | E28: 3956.931075 | F28: 4031.881673 | G28: 4336.801373 | H28: 4438.716205 | I28: 4172.393233 | J28: 4213.72 | K28: 4302.1533 | L28: 4078.742759 | M28: 4194.172364 | N28: 4188.906619 | O28: 4183.640874 | P28: 4178.375129 | Q28: 4173.109384
B29: Steel Paint Cans | C29: 4800 | D29: 8609.252 | E29: 6758.36943 | F29: 5239.92032 | G29: 5787.63185 | H29: 5787.63185 | I29: 5382.49762 | J29: 5166.72 | K29: 4918.2184 | L29: 5072.271953 | M29: 4721.67458 | N29: 4534.296987 | O29: 4346.919394 | P29: 4159.541801 | Q29: 3972.164208
A30: Steel Total | C30: 66900 | D30: 71509.252 | E30: 58209.87429 | F30: 57564.15596 | G30: 59475.60505 | H30: 61026.54332 | I30: 56799.07245 | J30: 57096.88 | K30: 55982.4829 | L30: 54436.55031 | M30: 52327.78448 | N30: 50951.01045 | O30: 49574.23642 | P30: 48197.46239 | Q30: 46820.68836
A31: Aluminum Packaging | B31: Aluminum Food & Beverage Cans | C31: 24100 | D31: 24400 | E31: 22604.09903 | F31: 21930.40859 | G31: 22577.91875 | H31: 23215.91875 | I31: 22287.282 | J31: 21172.65 | K31: 23034.7098 | L31: 22551.77291 | M31: 21822.81931 | N31: 21647.42719 | O31: 21472.03507 | P31: 21296.64295 | Q31: 21121.25082
B32: Other Aluminum Packaging | C32: 2408.226691 | D32: 2481.578984 | E32: 3648.030972 | F32: 3711.844946 | G32: 3896.941935 | H32: 3988.52007 | I32: 3589.668063 | J32: 3733.6 | K32: 4228.6828 | L32: 4521.1978 | M32: 4667.474537 | N32: 4857.773684 | O32: 5048.072832 | P32: 5238.371979 | Q32: 5428.671126
A33: Aluminum Total | C33: 26508.22669 | D33: 26881.57898 | E33: 26252.13001 | F33: 25642.25353 | G33: 26474.86069 | H33: 27204.43882 | I33: 25876.95007 | J33: 24906.25 | K33: 27263.3926 | L33: 27072.97071 | M33: 26490.29385 | N33: 26505.20087 | O33: 26520.1079 | P33: 26535.01492 | Q33: 26549.92195
A34: Glass | B34: Clear Glass | C34: 76200 | D34: 77200 | E34: 73979.71552 | F34: 68539.90065 | G34: 70424.79007 | H34: 85913.61318 | I34: 79470.09219 | J34: 76291.2 | K34: 76065.19893 | L34: 74521.6429 | M34: 77086.88197 | N34: 77309.83954 | O34: 77532.7971 | P34: 77755.75467 | Q34: 77978.71224
B35: Coloured Glass | C35: 6700 | D35: 6800 | E35: 15210.81748 | F35: 9398.990275 | G35: 9829.171755 | H35: 24071.15729 | I35: 22867.59943 | J35: 24468.76 | K35: 25001.80831 | L35: 25277.37378 | M35: 30147.45276 | N35: 32544.70456 | O35: 34941.95637 | P35: 37339.20817 | Q35: 39736.45997
A36: Glass Total | C36: 45600 | D36: 44125.111 | E36: 89190.533 | F36: 77938.89092 | G36: 80253.96182 | H36: 109984.7705 | I36: 102337.6916 | J36: 100759.96 | K36: 101067.0072 | L36: 99799.01668 | M36: 120010.9866 | N36: 126357.4034 | O36: 132703.8202 | P36: 139050.2369 | Q36: 145396.6537
C37: 66200 | D37: 61509.128 | M37: 56818.256 | N37: 52127.384
A38: PACKAGING TOTAL | C38: 194700 | D38: 189634.239 | E38: 748870.8866 | F38: 733993.1256 | G38: 753375.356 | H38: 801269.0463 | I38: 778029.6742 | J38: 774696.31 | K38: 835944.2815 | L38: 840331.1143 | M38: 1019883.763 | N38: 1084392.737 | O38: 1148901.712 | P38: 1213410.686 | Q38: 1277919.66
A41: Category | B41: Material | C41: 2005 Revenue | D41: 2006 Revenue | E41: 2007 Revenue | F41: 2008 Revenue | G41: 2009 Revenue | H41: 2010 Revenue | I41: 2011 Revenue | J41: 2012 Revenue | K41: 2013 Revenue | L41: 2014 Revenue | M41: 2015 Revenue | N41: 2016 Revenue | O41: 2017 Revenue | P41: 2018 Revenue | Q41: 2019 Revenue
C42: (tonnes) | D42: (tonnes) | E42: (tonnes) | F42: (tonnes) | G42: (tonnes) | H42: (tonnes) | I42: (tonnes) | J42: (tonnes) | K42: (tonnes) | L42: (tonnes) | M42: (tonnes) | N42: (tonnes) | O42: (tonnes) | P42: (tonnes) | Q42: (tonnes)
A43: PRINTED PAPER
B44: Newsprint - CNA/OCNA | C44: 77.25272883 | D44: 81.22953201 | E44: 102.613264 | F44: 94.32224702 | G44: 89.60535313 | H44: 106.0107211 | I44: 100.3296478 | J44: 87.51717511 | K44: 91.34454342 | L44: 87.94679163 | M44: 96.01715944 | N44: 96.78078835 | O44: 97.54441727 | P44: 98.30804618 | Q44: 99.0716751
B45: Newsprint - Non-CNA/OCNA | C45: 77.25272883 | D45: 81.22953201 | E45: 102.613264 | F45: 94.32224702 | G45: 89.60535313 | H45: 106.0107211 | I45: 100.3296478 | J45: 87.51717511 | K45: 91.34454342 | L45: 87.94679163 | M45: 96.01715944 | N45: 96.78078835 | O45: 97.54441727 | P45: 98.30804618 | Q45: 99.0716751
B46: Magazines and Catalogues | C46: 77.25272883 | D46: 81.22953201 | E46: 102.613264 | F46: 94.32224702 | G46: 89.60535313 | H46: 106.0107211 | I46: 100.3296478 | J46: 87.51717511 | K46: 91.34454342 | L46: 87.94679163 | M46: 96.01715944 | N46: 96.78078835 | O46: 97.54441727 | P46: 98.30804618 | Q46: 99.0716751
B47: Telephone Books | C47: 77.25272883 | D47: 81.22953201 | E47: 102.613264 | F47: 94.32224702 | G47: 89.60535313 | H47: 106.0107211 | I47: 86.0479832 | J47: 82.19953224 | K47: 90.12008115 | L47: 91.61067322 | M47: 92.80018696 | N47: 93.29090975 | O47: 93.78163255 | P47: 94.27235534 | Q47: 94.76307814
B48: Other Printed Paper | C48: 73.07508149 | D48: 76.49839684 | E48: 99.63046517 | F48: 91.58045441 | G48: 90.40232862 | H48: 102.6722382 | I48: 96.31834286 | J48: 86.3932483 | K48: 91.08340057 | L48: 89.03990563 | M48: 96.53858401 | N48: 97.78752907 | O48: 99.03647412 | P48: 100.2854192 | Q48: 101.5343642
A49: Printed Paper Total | C49: 76.7728596 | D49: 80.68968277 | E49: 102.3035097 | F49: 94.00768237 | G49: 89.68984751 | H49: 105.6009738 | I49: 99.38000587 | J49: 87.25422269 | K49: 91.28894074 | L49: 88.14349561 | M49: 95.95686179 | N49: 96.76481447 | O49: 97.57276714 | P49: 98.38071982 | Q49: 99.1886725
A51: PACKAGING
A52: Paper Based Packaging | B52: Corrugated Cardboard | C52: 63.43657454 | D52: 73.49230489 | E52: 96.49493386 | F52: 88.69826991 | G52: 95.64640666 | H52: 113.1458016 | I52: 96.92801058 | J52: 94.48360189 | K52: 109.4304923 | L52: 117.8377649 | M52: 120.7364155 | N52: 125.4231427 | O52: 130.1098699 | P52: 134.796597 | Q52: 139.4833242
B53: Boxboard | C53: 47.21232119 | D53: 50.26245577 | E53: 72.88786827 | F53: 66.99862422 | G53: 65.83779135 | H53: 77.47461697 | I53: 66.09181449 | J53: 72.85494908 | K53: 85.81913443 | L53: 88.71354032 | M53: 90.45396239 | N53: 94.27917162 | O53: 98.10438085 | P53: 101.9295901 | Q53: 105.7547993
B54: Gable Top Cartons | C54: 0 | D54: 0 | E54: 0 | F54: 0 | G54: 0 | H54: 0 | I54: 0 | J54: 0 | K54: 89.85702357 | L54: 97.93430387 | M54: 69.12606274 | N54: 78.28005001 | O54: 87.43403728 | P54: 96.58802455 | Q54: 105.7420118
B55: Paper Laminants | C55: 51.2495176 | D55: 51.41185298 | E55: 61.49481376 | F55: 56.52611356 | G55: 72.20827221 | H55: 77.47461697 | I55: 63.5724223 | J55: 76.26919411 | K55: 0 | L55: 0 | M55: 26.99229846 | N55: 22.62350176 | O55: 18.25470505 | P55: 13.88590834 | Q55: 9.517111639
B56: Aseptic Containers | C56: 51.2495176 | D56: 51.41185298 | E56: 61.49481376 | F56: 56.52611356 | G56: 72.20827221 | H56: 72.07789698 | I56: 64.19706405 | J56: 77.32474304 | K56: 90.09472122 | L56: 95.9100858 | M56: 95.07475192 | N56: 99.7702508 | O56: 104.4657497 | P56: 109.1612485 | Q56: 113.8567474
A57: Paper Packaging Total | C57: 57.49356517 | D57: 64.96297593 | E57: 87.22119838 | F57: 80.19459935 | G57: 84.26956778 | H57: 98.09121237 | I57: 86.23041138 | J57: 88.43587381 | K57: 101.6556681 | L57: 107.5200939 | M57: 110.443852 | N57: 114.9595494 | O57: 119.4752467 | P57: 123.9909441 | Q57: 128.5066414
A58: Plastic Packaging | B58: PET Bottles | C58: 216.9562912 | D58: 242.5996813 | E58: 402.9991233 | F58: 370.4373233 | G58: 393.4218896 | H58: 346.022567 | I58: 290.3147658 | J58: 282.4680557 | K58: 375.1706028 | L58: 425.2337271 | M58: 398.2981041 | N58: 409.8864134 | O58: 421.4747227 | P58: 433.0630321 | Q58: 444.6513414
B59: HDPE Bottles | C59: 250.2684776 | D59: 282.7651914 | E59: 493.887584 | F59: 453.9821158 | G59: 587.9554529 | H59: 556.509705 | I59: 459.1912871 | J59: 427.2738042 | K59: 432.4430253 | L59: 473.7765593 | M59: 532.1530016 | N59: 548.5798527 | O59: 565.0067039 | P59: 581.433555 | Q59: 597.8604062
B60: Plastic Film | C60: 6.833269013 | D60: 20.88606527 | E60: 71.29381935 | F60: 65.53337236 | G60: 86.62934597 | H60: 61.62489244 | I60: 30.20263238 | J60: 26.44443633 | K60: 28.07697799 | L60: 33.16249428 | M60: 40.8039248 | N60: 40.39214194 | O60: 39.98035908 | P60: 39.56857621 | Q60: 39.15679335
B61: Plastic Laminants | C61: 0 | D61: 0 | E61: 0 | F61: 0 | G61: 0 | H61: 0 | I61: 0 | J61: 0 | K61: 0 | L61: 0 | M61: 0 | N61: 0 | O61: 0 | P61: 0 | Q61: 0
B62: Polystyrene | C62: 75.16595915 | D62: 60.24826521 | E62: 80.78974364 | F62: 74.26203845 | G62: 53.53112875 | H62: 52.51682719 | I62: 61.72123112 | J62: 79.43332091 | K62: 51.6513721 | L62: 36.66100965 | M62: 47.5267018 | N62: 44.78644947 | O62: 42.04619714 | P62: 39.30594481 | Q62: 36.56569248
B63: Other Plastics | C63: 5.979110387 | D63: 22.49268568 | E63: 60.10087929 | F63: 55.24480717 | G63: 141.5972327 | H63: 164.5897747 | I63: 124.9993112 | J63: 105.5522541 | K63: 90.24375029 | L63: 145.9947623 | M63: 164.8098317 | N63: 178.1062635 | O63: 191.4026953 | P63: 204.6991271 | Q63: 217.9955589
A64: Plastics Total | C64: 194.8123424 | D64: 213.0780228 | E64: 361.299402 | F64: 340.5176627 | G64: 391.0768399 | H64: 353.457929 | I64: 270.5653993 | J64: 270.4234578 | K64: 293.0540516 | L64: 338.5687031 | M64: 341.0781819 | N64: 348.0586911 | O64: 355.0392004 | P64: 362.0197096 | Q64: 369.0002189
A65: Steel Packaging | B65: Steel Food & Beverage Cans | C65: 42.70793133 | D65: 84.3475713 | E65: 121.2101589 | F65: 111.4165372 | G65: 152.0007201 | H65: 190.7066232 | I65: 161.8286857 | J65: 189.5421672 | K65: 224.7188064 | L65: 262.8868731 | M65: 270.6636578 | N65: 291.8503942 | O65: 313.0371307 | P65: 334.2238671 | Q65: 355.4106035
B66: Steel Aerosols | C66: 42.70793133 | D66: 84.3475713 | E66: 121.2101589 | F66: 111.4165372 | G66: 152.0007201 | H66: 190.7066232 | I66: 161.8286857 | J66: 189.5421672 | K66: 224.7188064 | L66: 262.8868731 | M66: 270.6636578 | N66: 291.8503942 | O66: 313.0371307 | P66: 334.2238671 | Q66: 355.4106035
B67: Steel Paint Cans | C67: 42.70793133 | D67: 84.3475713 | E67: 121.2101589 | F67: 111.4165372 | G67: 152.0007201 | H67: 190.7066232 | I67: 161.8286857 | J67: 189.5421672 | K67: 224.7188064 | L67: 262.8868731 | M67: 270.6636578 | N67: 291.8503942 | O67: 313.0371307 | P67: 334.2238671 | Q67: 355.4106035
A68: Steel Total | C68: 42.70793133 | D68: 84.3475713 | E68: 121.2101589 | F68: 111.4165372 | G68: 152.0007201 | H68: 190.7066232 | I68: 161.8286857 | J68: 189.5421672 | K68: 224.7188064 | L68: 262.8868731 | M68: 270.6636578 | N68: 291.8503942 | O68: 313.0371307 | P68: 334.2238671 | Q68: 355.4106035
A69: Aluminum Packaging | B69: Aluminum Food & Beverage Cans | C69: 1432.424017 | D69: 1367.233965 | E69: 1616.667267 | F69: 1486.042675 | G69: 1857.822601 | H69: 1933.232851 | I69: 1610.615053 | J69: 1438.857335 | K69: 1402.465372 | L69: 1400.334819 | M69: 1538.499422 | N69: 1535.577572 | O69: 1532.655722 | P69: 1529.733872 | Q69: 1526.812022
B70: Other Aluminum Packaging | C70: 1432.424017 | D70: 1367.233965 | E70: 1616.667267 | F70: 1486.042675 | G70: 1857.822601 | H70: 1933.232851 | I70: 1610.615053 | J70: 1438.857335 | K70: 1402.465372 | L70: 1400.334819 | M70: 1538.499422 | N70: 1535.577572 | O70: 1532.655722 | P70: 1529.733872 | Q70: 1526.812022
A71: Aluminum Total | C71: 1432.424017 | D71: 1367.233965 | E71: 1616.667267 | F71: 1486.042675 | G71: 1857.822601 | H71: 1933.232851 | I71: 1610.615053 | J71: 1438.857335 | K71: 1402.465372 | L71: 1400.334819 | M71: 1538.499422 | N71: 1535.577572 | O71: 1532.655722 | P71: 1529.733872 | Q71: 1526.812022
A72: Glass | B72: Clear Glass | C72: 0.1476355305 | D72: 2.999440116 | E72: 9.996256069 | F72: 9.188571705 | G72: 8.210571865 | H72: 8.992408816 | I72: 12.39337544 | J72: 35.78962111 | K72: 27.19324036 | L72: 25.96662696 | M72: 32.12412806 | N72: 35.40346502 | O72: 38.68280198 | P72: 41.96213893 | Q72: 45.24147589
B73: Coloured Glass | C73: 0 | D73: 0 | E73: 2.494375035 | F73: 2.292832807 | G73: 5.851896991 | H73: 7.402003243 | I73: 11.22790436 | J73: 30.64377714 | K73: 21.97754914 | L73: 20.83737716 | M73: 27.28882392 | N73: 30.38265162 | O73: 33.47647931 | P73: 36.57030701 | Q73: 39.6641347
A74: Glass Total | C74: 0.1476355305 | D74: 2.999440116 | E74: 8.744447401 | F74: 8.372612885 | G74: 7.961109958 | H74: 8.686066725 | I74: 12.16438621 | J74: 34.74655611 | K74: 26.19720718 | L74: 24.95459791 | M74: 31.08933437 | N74: 34.2878668 | O74: 37.48639923 | P74: 40.68493166 | Q74: 43.88346409
C75: 0 | D75: 0 | M75: 0 | N75: 0
A76: PACKAGING TOTAL | C76: 0.09042513316 | D76: 1.889930691 | E76: 166.8732901 | F76: 156.0446461 | G76: 170.5607955 | H76: 163.2058102 | I76: 139.5641709 | J76: 146.4119883 | K76: 157.5459277 | L76: 175.2834975 | M76: 211.3212719 | N76: 226.5165853 | O76: 241.7118987 | P76: 256.907212 | Q76: 272.1025254
A79: Category | B79: Material | C79: 2005 Quantity Recovered | D79: 2006 Quantity Recovered | E79: 2007 Quantity Recovered | F79: 2008 Quantity Recovered | G79: 2009 Quantity Recovered | H79: 2010 Quantity Recovered | I79: 2011 Quantity Recovered | J79: 2012 Quantity Recovered | K79: 2013 Quantity Recovered | L79: 2014 Quantity Recovered | M79: 2015 Quantity Recovered | N79: 2016 Quantity Recovered | O79: 2017 Quantity Recovered | P79: 2018 Quantity Recovered | Q79: 2019 Quantity Recovered
C80: (tonnes) | D80: (tonnes) | E80: (tonnes) | F80: (tonnes) | G80: (tonnes) | H80: (tonnes) | I80: (tonnes) | J80: (tonnes) | K80: (tonnes) | L80: (tonnes) | M80: (tonnes) | N80: (tonnes) | O80: (tonnes) | P80: (tonnes) | Q80: (tonnes)
A81: PRINTED PAPER
B82: Newsprint - CNA/OCNA | C82: 198665.5644 | D82: 213942.955 | E82: 215715.9578 | F82: 235716.2351 | G82: 236301.0944 | H82: 224344.4521 | I82: 196010.4941 | J82: 206751.7364 | K82: 202415.719 | L82: 203689.271 | M82: 206309.6057 | N82: 205028.5617 | O82: 203747.5177 | P82: 202466.4736 | Q82: 201185.4296
B83: Newsprint - Non-CNA/OCNA | C83: 102333.7726 | D83: 101656.3851 | E83: 103390.4886 | F83: 112976.4204 | G83: 113256.7376 | H83: 109789.7453 | I83: 95923.66565 | J83: 114096.8324 | K83: 138192.5565 | L83: 139062.0315 | M83: 132574.9967 | N83: 136121.7481 | O83: 139668.4996 | P83: 143215.2511 | Q83: 146762.0025
B84: Magazines and Catalogues | C84: 68898.27458 | D84: 72240.1923 | E84: 73042.96342 | F84: 79815.20011 | G84: 80013.23765 | H84: 80112.2661 | I84: 74107.01596 | J84: 80662.52828 | K84: 74738.44074 | L84: 61776.10222 | M84: 73689.30507 | N84: 73534.52015 | O84: 73379.73523 | P84: 73224.95031 | Q84: 73070.16539
B85: Telephone Books | C85: 11253.714 | D85: 12142.83334 | E85: 16961.0908 | F85: 13104.87979 | G85: 17493.4972 | H85: 13499.73344 | I85: 11994.67323 | J85: 10094.29953 | K85: 8523.115838 | L85: 7967.842398 | M85: 9084.594399 | N85: 8499.326479 | O85: 7914.05856 | P85: 7328.79064 | Q85: 6743.522721
B86: Other Printed Paper | C86: 49462.89047 | D86: 51518.83613 | E86: 47408.02071 | F86: 57232.2653 | G86: 53018.16848 | H86: 59844.19824 | I86: 61304.85407 | J86: 63363.96679 | K86: 63890.49668 | L86: 57949.17696 | M86: 65226.01167 | N86: 66812.68881 | O86: 68399.36595 | P86: 69986.0431 | Q86: 71572.72024
A87: Printed Paper Total | C87: 430614.2161 | D87: 451501.2019 | E87: 456518.5214 | F87: 498845.0007 | G87: 500082.7353 | H87: 487590.3951 | I87: 439340.703 | J87: 474969.3634 | K87: 487760.3288 | L87: 470444.4241 | M87: 486884.5135 | N87: 489996.8453 | O87: 493109.177 | P87: 496221.5088 | Q87: 499333.8405
A89: PACKAGING
A90: Paper Based Packaging | B90: Corrugated Cardboard | C90: 100279.3633 | D90: 107357.0922 | E90: 115229.5332 | F90: 124806.7393 | G90: 125609.5195 | H90: 155563.2593 | I90: 159076.6674 | J90: 149770.916 | K90: 148703.0733 | L90: 144539.0381 | M90: 166201.1661 | N90: 172220.7381 | O90: 178240.3101 | P90: 184259.8821 | Q90: 190279.4541
B91: Boxboard | C91: 54711.92462 | D91: 58573.49854 | E91: 67674.48773 | F91: 73299.19612 | G91: 73931.07986 | H91: 85091.96445 | I91: 71172.2018 | J91: 70976.6756 | K91: 66790.3543 | L91: 67997.79632 | M91: 75634.64049 | N91: 76836.95368 | O91: 78039.26687 | P91: 79241.58006 | Q91: 80443.89325
B92: Gable Top Cartons | C92: 420 | D92: 425 | E92: 376.7300038 | F92: 370.9350868 | G92: 383.8739431 | H92: 392.8949807 | I92: 385.0370811 | J92: 400.8968464 | K92: 4568.349546 | L92: 6833.153614 | M92: 4352.153463 | N92: 4878.783709 | O92: 5405.413955 | P92: 5932.044201 | Q92: 6458.674447
B93: Paper Laminants | C93: 268.128 | D93: 355.5238115 | E93: 455.7913654 | F93: 484.6114443 | G93: 502.8764943 | H93: 783.758452 | I93: 924.7411136 | J93: 502.6392727 | K93: 383.7280852 | L93: 1264.11354 | M93: 959.1515006 | N93: 1025.798836 | O93: 1092.446171 | P93: 1159.093506 | Q93: 1225.740841
B94: Aseptic Containers | C94: 1222.452 | D94: 1637.948989 | E94: 2099.895933 | F94: 2232.674154 | G94: 2316.823849 | H94: 3575.706296 | I94: 3943.76575 | J94: 4850.388341 | K94: 476.0929688 | L94: 954.6291992 | M94: 2651.078479 | N94: 2709.267703 | O94: 2767.456927 | P94: 2825.64615 | Q94: 2883.835374
A95: Paper Packaging Total | C95: 156901.8679 | D95: 168349.0636 | E95: 185836.4382 | F95: 201194.1561 | G95: 202744.1736 | H95: 245407.5835 | I95: 235502.4132 | J95: 226501.516 | K95: 220921.5982 | L95: 221588.7308 | M95: 249798.1901 | N95: 257671.5421 | O95: 265544.8941 | P95: 273418.2461 | Q95: 281291.598
A96: Plastic Packaging | B96: PET Bottles | C96: 18119.97295 | D96: 20143.00857 | E96: 23191.91859 | F96: 26797.20591 | G96: 26903.83712 | H96: 28240.08153 | I96: 25556.89401 | J96: 28216.54798 | K96: 29320.89949 | L96: 32700.66352 | M96: 33192.76654 | N96: 34515.25083 | O96: 35837.73511 | P96: 37160.2194 | Q96: 38482.70369
B97: HDPE Bottles | C97: 11551.4341 | D97: 12132.90763 | E97: 13328.07819 | F97: 15271.86478 | G97: 15200.67835 | H97: 15716.55906 | I97: 14641.25594 | J97: 15469.67723 | K97: 16133.97588 | L97: 16408.75263 | M97: 17287.36485 | N97: 17778.60966 | O97: 18269.85447 | P97: 18761.09928 | Q97: 19252.34409
B98: Plastic Film | C98: 2992.661541 | D98: 4213.001023 | E98: 4994.929918 | F98: 3515.330882 | G98: 4822.302382 | H98: 4220.496092 | I98: 5208.500608 | J98: 3122.627863 | K98: 4391.774023 | L98: 4923.313607 | M98: 4698.609534 | N98: 4781.903305 | O98: 4865.197076 | P98: 4948.490847 | Q98: 5031.784618
B99: Plastic Laminants | C99: 574 | D99: 581 | E99: 256.1296757 | F99: 268.0518366 | G99: 284.5515851 | H99: 300.6236187 | I99: 323.1703901 | J99: 336.0968 | K99: 349.540672 | L99: 7.096217401 | M99: 123.3232121 | N99: 86.10450894 | O99: 48.88580576 | P99: 11.66710259 | Q99: -25.55160059
B100: Polystyrene | C100: 541.434981 | D100: 374.4252989 | E100: 394.1024828 | F100: 847.2475474 | G100: 417.314967 | H100: 776.6708399 | I100: 992.0893675 | J100: 822.8591266 | K100: 1018.451886 | L100: 1448.423565 | M100: 1283.593603 | N100: 1378.192076 | O100: 1472.790548 | P100: 1567.38902 | Q100: 1661.987492
B101: Other Plastics | C101: 1602.921658 | D101: 2358.189938 | E101: 3594.29248 | F101: 4385.469869 | G101: 5353.130999 | H101: 7463.565447 | I101: 11815.19659 | J101: 10653.03728 | K101: 15505.22194 | L101: 16145.96826 | M101: 17308.03218 | N101: 19020.81995 | O101: 20733.60772 | P101: 22446.39549 | Q101: 24159.18326
A102: Plastics Total | C102: 35382.42523 | D102: 39802.53245 | E102: 45759.45134 | F102: 51085.17083 | G102: 52981.81541 | H102: 56717.99659 | I102: 58537.10691 | J102: 58620.84628 | K102: 66719.86389 | L102: 71634.2178 | M102: 73893.68992 | N102: 77560.88032 | O102: 81228.07073 | P102: 84895.26114 | Q102: 88562.45155
A103: Steel Packaging | B103: Steel Food & Beverage Cans | C103: 30447.14657 | D103: 31346.60644 | E103: 31289.73987 | F103: 32313.49181 | G103: 31132.42687 | H103: 31317.34439 | I103: 31478.70873 | J103: 29134.45002 | K103: 28726.65596 | L103: 29186.73 | M103: 29211.35395 | N103: 28952.08557 | O103: 28692.81718 | P103: 28433.5488 | Q103: 28174.28042
B104: Steel Aerosols | C104: 1007.706979 | D104: 1037.270211 | E104: 1035.594227 | F104: 1074.851528 | G104: 1053.572932 | H104: 1168.449508 | I104: 927.0230595 | J104: 1167.114231 | K104: 1150.866604 | L104: 942.2774153 | M104: 1074.315998 | N104: 1077.56024 | O104: 1080.804481 | P104: 1084.048723 | Q104: 1087.292965
B105: Steel Paint Cans | C105: 1127.672095 | D105: 1160.540004 | E105: 1158.879254 | F105: 1202.810043 | G105: 1178.99828 | H105: 1651.704572 | I105: 978.4199637 | J105: 935.174032 | K105: 922.1552896 | L105: 695.9209608 | M105: 872.1126738 | N105: 830.4554419 | O105: 788.7982099 | P105: 747.140978 | Q105: 705.483746
A106: Steel Total | C106: 32582.52565 | D106: 33544.41665 | E106: 33484.21335 | F106: 34591.15339 | G106: 33364.99808 | H106: 34137.49847 | I106: 33384.15176 | J106: 31236.73829 | K106: 30799.67785 | L106: 30824.92838 | M106: 31157.78263 | N106: 30860.10125 | O106: 30562.41988 | P106: 30264.7385 | Q106: 29967.05713
A107: Aluminum Packaging | B107: Aluminum Food & Beverage Cans | C107: 9831.857238 | D107: 10454.9478 | E107: 10742.60748 | F107: 11192.62905 | G107: 9925.206682 | H107: 9585.657315 | I107: 10515.38418 | J107: 10506.61863 | K107: 9993.773175 | L107: 10860.30582 | M107: 10443.45163 | N107: 10458.46124 | O107: 10473.47086 | P107: 10488.48047 | Q107: 10503.49009
B108: Other Aluminum Packaging | C108: 281.5411248 | D108: 299.3836964 | E108: 307.6348075 | F108: 323.7596195 | G108: 301.4647094 | H108: 1107.244123 | I108: 325.069992 | J108: 336.5600569 | K108: 320.1906292 | L108: 347.95348 | M108: 451.6701073 | N108: 461.9591771 | O108: 472.2482468 | P108: 482.5373165 | Q108: 492.8263862
A109: Aluminum Total | C109: 10113.39836 | D109: 10754.3315 | E109: 11050.24229 | F109: 11516.38867 | G109: 10226.67139 | H109: 10692.90144 | I109: 10840.45418 | J109: 10843.17868 | K109: 10313.9638 | L109: 11208.2593 | M109: 10895.12173 | N109: 10920.42042 | O109: 10945.7191 | P109: 10971.01779 | Q109: 10996.31648
A110: Glass | B110: Clear Glass | C110: 40336.43241 | D110: 44524.09424 | E110: 45237.89056 | F110: 47383.38811 | G110: 59528.49769 | H110: 76686.89755 | I110: 74413.25025 | J110: 67826.72133 | K110: 71465.70373 | L110: 70014.08916 | M110: 81971.10708 | N110: 86012.81809 | O110: 90054.52911 | P110: 94096.24012 | Q110: 98137.95113
B111: Coloured Glass | C111: 3228.862698 | D111: 3675.419516 | E111: 9060.564458 | F111: 6359.258555 | G111: 7040.584685 | H111: 18295.37626 | I111: 18195.58331 | J111: 17243.84359 | K111: 16869.18976 | L111: 17209.73862 | M111: 21913.32336 | N111: 23767.04722 | O111: 25620.77108 | P111: 27474.49493 | Q111: 29328.21879
A112: Glass Total | C112: 29640 | D112: 30887.5777 | E112: 54298.45502 | F112: 53742.64666 | G112: 66569.08238 | H112: 94982.27381 | I112: 92608.83356 | J112: 85070.56492 | K112: 88334.89349 | L112: 87223.82777 | M112: 108977.7476 | N112: 116367.1898 | O112: 123756.632 | P112: 131146.0742 | Q112: 138535.5164
C113: 41044 | D113: 40596.02448 | M113: 40148.04896 | N113: 39700.07344
A114: PACKAGING TOTAL | C114: 114249.2951 | D114: 119683.1159 | E114: 330428.8002 | F114: 352129.5157 | G114: 365886.7409 | H114: 441938.2538 | I114: 430872.9596 | J114: 412272.8442 | K114: 417089.9972 | L114: 422479.964 | M114: 526617.3571 | N114: 560419.9405 | O114: 594222.5239 | P114: 628025.1072 | Q114: 661827.6906
A117: Category | B117: Material | C117: 2005 Gross Costs | D117: 2006 Gross Costs | E117: 2007 Gross Costs | F117: 2008 Gross Costs | G117: 2009 Gross Costs | H117: 2010 Gross Costs | I117: 2011 Gross Costs | J117: 2012 Gross Costs | K117: 2013 Gross Costs | L117: 2014 Gross Costs | M117: 2015 Gross Costs | N117: 2016 Gross Costs | O117: 2017 Gross Costs | P117: 2018 Gross Costs | Q117: 2019 Gross Costs
C118: (tonnes) | D118: (tonnes) | E118: (tonnes) | F118: (tonnes) | G118: (tonnes) | H118: (tonnes) | I118: (tonnes) | J118: (tonnes) | K118: (tonnes) | L118: (tonnes) | M118: (tonnes) | N118: (tonnes) | O118: (tonnes) | P118: (tonnes) | Q118: (tonnes)
A119: PRINTED PAPER
B120: Newsprint - CNA/OCNA | C120: 99.48090221 | D120: 98.7552262 | E120: 112.5352386 | F120: 108.027173 | G120: 119.6527484 | H120: 116.0065669 | I120: 119.2517885 | J120: 134.1701789 | K120: 175.4898696 | L120: 173.2880698 | M120: 170.3194222 | N120: 178.4382669 | O120: 186.5571116 | P120: 194.6759563 | Q120: 202.794801
B121: Newsprint - Non-CNA/OCNA | C121: 99.48090221 | D121: 98.7552262 | E121: 112.5352386 | F121: 108.027173 | G121: 119.6527484 | H121: 116.0065669 | I121: 119.2517885 | J121: 134.1701789 | K121: 175.4898696 | L121: 173.2880698 | M121: 170.3194222 | N121: 178.4382669 | O121: 186.5571116 | P121: 194.6759563 | Q121: 202.794801
B122: Magazines and Catalogues | C122: 99.48090221 | D122: 98.7552262 | E122: 112.5352386 | F122: 108.027173 | G122: 119.6527484 | H122: 116.0065669 | I122: 119.2517885 | J122: 134.1701789 | K122: 175.4898696 | L122: 173.2880698 | M122: 170.3194222 | N122: 178.4382669 | O122: 186.5571116 | P122: 194.6759563 | Q122: 202.794801
B123: Telephone Books | C123: 137.4411448 | D123: 136.4385631 | E123: 155.476797 | F123: 149.2485292 | G123: 165.310229 | H123: 174.6498262 | I123: 195.0295898 | J123: 268.1990454 | K123: 226.6846769 | L123: 210.886934 | M123: 248.7041642 | N123: 260.8437334 | O123: 272.9833027 | P123: 285.1228719 | Q123: 297.2624411
B124: Other Printed Paper | C124: 175.4013875 | D124: 174.1218999 | E124: 198.4183553 | F124: 190.4698853 | G124: 210.9677096 | H124: 179.3116399 | I124: 157.1406892 | J124: 161.5984102 | K124: 186.0883056 | L124: 185.3113766 | M124: 177.1233445 | N124: 176.2579588 | O124: 175.3925731 | P124: 174.5271874 | Q124: 173.6618017
A125: Printed Paper Total | C125: 19.79894814 | D125: 19.79894814 | E125: 19.79894814 | F125: 19.79894814 | G125: 19.79894814 | H125: 19.79894814 | I125: 87.26240684 | J125: 87.26240684 | K125: 87.26240684 | L125: 87.26240684 | M125: 100.7550986 | N125: 110.5679653 | O125: 120.380832 | P125: 130.1936987 | Q125: 140.0065655
A127: PACKAGING
A128: Paper Based Packaging | B128: Corrugated Cardboard | C128: 411.5371064 | D128: 408.535097 | E128: 465.5408771 | F128: 446.8917069 | G128: 494.9849143 | H128: 483.4815949 | I128: 500.8652553 | J128: 510.8120808 | K128: 479.7110721 | L128: 482.5160767 | M128: 518.9481083 | N128: 528.1227501 | O128: 537.297392 | P128: 546.4720338 | Q128: 555.6466756
B129: Boxboard | C129: 375.4741633 | D129: 372.7352196 | E129: 424.7455907 | F129: 407.7306448 | G129: 451.6094507 | H129: 1033.87594 | I129: 1166.779917 | J129: 1065.383785 | K129: 281.5505145 | L129: 287.6713607 | M129: 741.2252293 | N129: 769.3106058 | O129: 797.3959822 | P129: 825.4813587 | Q129: 853.5667352
B130: Gable Top Cartons | C130: 375.4741633 | D130: 372.7352196 | E130: 424.7455907 | F130: 407.7306448 | G130: 451.6094507 | H130: 840.0194175 | I130: 1296.934299 | J130: 842.2533221 | K130: 1121.978933 | L130: 1170.59989 | M130: 1315.221331 | N130: 1421.55101 | O130: 1527.88069 | P130: 1634.210369 | Q130: 1740.540049
B131: Paper Laminants | C131: 803.8544269 | D131: 797.9906092 | E131: 909.3398607 | F131: 872.912482 | G131: 966.8528267 | H131: 1095.687548 | I131: 1296.934299 | J131: 842.2533221 | K131: 882.0510714 | L131: 960.4760676 | M131: 1044.951434 | N131: 1063.518013 | O131: 1082.084591 | P131: 1100.65117 | Q131: 1119.217749
B132: Aseptic Containers | C132: 803.8544269 | D132: 797.9906092 | E132: 909.3398607 | F132: 872.912482 | G132: 966.8528267 | H132: 436.6726951 | I132: 447.6222606 | J132: 307.6571422 | K132: 882.0510714 | L132: 960.4760676 | M132: 644.661398 | N132: 627.592026 | O132: 610.522654 | P132: 593.4532819 | Q132: 576.3839099
A133: Paper Packaging Total | C133: 379.7055166 | D133: 379.7055166 | E133: 379.7055166 | F133: 379.7055166 | G133: 379.7055166 | H133: 379.7055166 | I133: 341.2092526 | J133: 341.2092526 | K133: 341.2092526 | L133: 341.2092526 | M133: 333.5099998 | N133: 327.9105433 | O133: 322.3110867 | P133: 316.7116301 | Q133: 311.1121735
A134: Plastic Packaging | B134: PET Bottles | C134: 1027.503567 | D134: 1020.008312 | E134: 1162.337258 | F134: 1115.775019 | G134: 1235.851536 | H134: 1226.104069 | I134: 1290.484826 | J134: 1371.066157 | K134: 1287.223702 | L134: 1280.549808 | M134: 1391.88877 | N134: 1426.470287 | O134: 1461.051804 | P134: 1495.633322 | Q134: 1530.214839
B135: HDPE Bottles | C135: 969.1169255 | D135: 962.0475797 | E135: 1096.288856 | F135: 1052.37246 | G135: 1165.625774 | H135: 1121.81281 | I135: 1144.257854 | J135: 1215.708381 | K135: 1202.605167 | L135: 1196.369997 | M135: 1264.557967 | N135: 1292.182947 | O135: 1319.807926 | P135: 1347.432905 | Q135: 1375.057885
B136: Plastic Film | C136: 1478.537129 | D136: 1467.751753 | E136: 1672.557496 | F136: 1605.55627 | G136: 1778.341644 | H136: 2379.689379 | I136: 1923.795961 | J136: 2043.922937 | K136: 1904.612301 | L136: 1894.73742 | M136: 2155.507578 | N136: 2217.427096 | O136: 2279.346614 | P136: 2341.266132 | Q136: 2403.18565
B137: Plastic Laminants | C137: 1478.537129 | D137: 1467.751753 | E137: 1672.557496 | F137: 1605.55627 | G137: 1778.341644 | H137: 2379.689379 | I137: 1923.795961 | J137: 2043.922937 | K137: 1904.612301 | L137: 1894.73742 | M137: 2155.507578 | N137: 2217.427096 | O137: 2279.346614 | P137: 2341.266132 | Q137: 2403.18565
B138: Polystyrene | C138: 1782.221583 | D138: 1769.220943 | E138: 2016.092805 | F138: 1935.329848 | G138: 2143.604511 | H138: 2656.784775 | I138: 2318.934449 | J138: 2463.734931 | K138: 2304.043091 | L138: 2292.097274 | M138: 2576.034453 | N138: 2650.185004 | O138: 2724.335555 | P138: 2798.486106 | Q138: 2872.636658
B139: Other Plastics | C139: 956.299752 | D139: 949.3239027 | E139: 1081.789755 | F139: 1038.45418 | G139: 1150.209649 | H139: 1341.119418 | I139: 1244.287725 | J139: 1321.984385 | K139: 1395.070526 | L139: 1387.837477 | M139: 1487.085992 | N139: 1541.712958 | O139: 1596.339925 | P139: 1650.966891 | Q139: 1705.593857
A140: Plastics Total | C140: 970.4279811 | D140: 970.4279811 | E140: 970.4279811 | F140: 970.4279811 | G140: 970.4279811 | H140: 970.4279811 | I140: 1009.606935 | J140: 1009.606935 | K140: 1009.606935 | L140: 1009.606935 | M140: 1017.442725 | N140: 1023.141482 | O140: 1028.840239 | P140: 1034.538996 | Q140: 1040.237753
A141: Steel Packaging | B141: Steel Food & Beverage Cans | C141: 265.6552081 | D141: 263.7173526 | E141: 300.5156927 | F141: 288.4772905 | G141: 319.5223915 | H141: 306.1154762 | I141: 310.7236698 | J141: 330.1260885 | K141: 353.9895434 | L141: 352.1542069 | M141: 362.8257096 | N141: 372.5940764 | O141: 382.3624432 | P141: 392.13081 | Q141: 401.8991769
B142: Steel Aerosols | C142: 265.6552081 | D142: 263.7173526 | E142: 300.5156927 | F142: 288.4772905 | G142: 319.5223915 | H142: 306.1154762 | I142: 310.7236698 | J142: 330.1260885 | K142: 353.9895434 | L142: 352.1542069 | M142: 362.8257096 | N142: 372.5940764 | O142: 382.3624432 | P142: 392.13081 | Q142: 401.8991769
B143: Steel Paint Cans | C143: 265.6552081 | D143: 263.7173526 | E143: 300.5156927 | F143: 288.4772905 | G143: 319.5223915 | H143: 306.1154762 | I143: 310.7236698 | J143: 330.1260885 | K143: 353.9895434 | L143: 352.1542069 | M143: 362.8257096 | N143: 372.5940764 | O143: 382.3624432 | P143: 392.13081 | Q143: 401.8991769
A144: Steel Total | C144: 115.408853 | D144: 115.408853 | E144: 115.408853 | F144: 115.408853 | G144: 115.408853 | H144: 115.408853 | I144: 89.26733384 | J144: 89.26733384 | K144: 89.26733384 | L144: 89.26733384 | M144: 84.03903002 | N144: 80.23662724 | O144: 76.43422446 | P144: 72.63182168 | Q144: 68.8294189
A145: Aluminum Packaging | B145: Aluminum Food & Beverage Cans | C145: 810.0298895 | D145: 804.1210242 | E145: 916.3256956 | F145: 879.6184703 | G145: 974.2804943 | H145: 995.6275998 | I145: 1078.481044 | J145: 1145.824291 | K145: 1120.160638 | L145: 1114.35292 | M145: 1207.769286 | N145: 1248.476028 | O145: 1289.182769 | P145: 1329.889511 | Q145: 1370.596253
B146: Other Aluminum Packaging | C146: 810.0298895 | D146: 804.1210242 | E146: 916.3256956 | F146: 879.6184703 | G146: 974.2804943 | H146: 995.6275998 | I146: 1078.481044 | J146: 1145.824291 | K146: 1120.160638 | L146: 1114.35292 | M146: 1207.769286 | N146: 1248.476028 | O146: 1289.182769 | P146: 1329.889511 | Q146: 1370.596253
A147: Aluminum Total | C147: -937.605251 | D147: -937.605251 | E147: -937.605251 | F147: -937.605251 | G147: -937.605251 | H147: -937.605251 | I147: -285.9818991 | J147: -285.9818991 | K147: -285.9818991 | L147: -285.9818991 | M147: -155.6572287 | N147: -60.87565024 | O147: 33.90592822 | P147: 128.6875067 | Q147: 223.4690851
A148: Glass | B148: Clear Glass | C148: 158.7537219 | D148: 157.5956729 | E148: 179.5861073 | F148: 172.3920411 | G148: 190.9443796 | H148: 172.7610766 | I148: 164.2687413 | J148: 174.5261218 | K148: 136.7006363 | L148: 135.9918818 | M148: 150.3862065 | N148: 147.8469644 | O148: 145.3077223 | P148: 142.7684802 | Q148: 140.2292381
B149: Coloured Glass | C149: 150.9038697 | D149: 149.8030823 | E149: 170.7061618 | F149: 163.8678186 | G149: 181.5028046 | H149: 151.4696053 | I149: 129.3010966 | J149: 137.3750037 | K149: 126.0786979 | L149: 125.4250152 | M149: 125.4509977 | N149: 121.2342126 | O149: 117.0174275 | P149: 112.8006425 | Q149: 108.5838574
A150: Glass Total | C150: 159.9738711 | D150: 159.9738711 | E150: 159.9738711 | F150: 159.9738711 | G150: 159.9738711 | H150: 159.9738711 | I150: 108.9523833 | J150: 108.9523833 | K150: 108.9523833 | L150: 108.9523833 | M150: 98.74808574 | N150: 91.32677842 | O150: 83.9054711 | P150: 76.48416377 | Q150: 69.06285645
A152: PACKAGING TOTAL | C152: 356.0046542 | D152: 356.0046542 | E152: 356.0046542 | F152: 356.0046542 | G152: 356.0046542 | H152: 356.0046542 | I152: 398.5374719 | J152: 391.7894699 | K152: 371.186103 | L152: 371.5680871 | M152: 385.3396913 | N152: 388.6903796 | O152: 392.0410679 | P152: 395.3917562 | Q152: 398.7424445
A155: Category | B155: Material | C155: 2005 Net Cost | D155: 2006 Net Cost | E155: 2007 Net Cost | F155: 2008 Net Cost | G155: 2009 Net Cost | H155: 2010 Net Cost | I155: 2011 Net Cost | J155: 2012 Net Cost | K155: 2013 Net Cost | L155: 2014 Net Cost | M155: 2015 Net Cost | N155: 2016 Net Cost | O155: 2017 Net Cost | P155: 2018 Net Cost | Q155: 2019 Net Cost
C156: (tonnes) | D156: (tonnes) | E156: (tonnes) | F156: (tonnes) | G156: (tonnes) | H156: (tonnes) | I156: (tonnes) | J156: (tonnes) | K156: (tonnes) | L156: (tonnes) | M156: (tonnes) | N156: (tonnes) | O156: (tonnes) | P156: (tonnes) | Q156: (tonnes)
A157: PRINTED PAPER
B158: Newsprint - CNA/OCNA | C158: 22.22817338 | D158: 17.5256942 | E158: 9.921974635 | F158: 13.704926 | G158: 30.04739529 | H158: 9.995845811 | I158: 18.92214072 | J158: 46.65300383 | K158: 84.14532614 | L158: 85.34127818 | M158: 74.30226273 | N158: 81.65747853 | O158: 89.01269434 | P158: 96.36791014 | Q158: 103.7231259
B159: Newsprint - Non-CNA/OCNA | C159: 22.22817338 | D159: 17.5256942 | E159: 9.921974635 | F159: 13.704926 | G159: 30.04739529 | H159: 9.995845811 | I159: 18.92214072 | J159: 46.65300383 | K159: 84.14532614 | L159: 85.34127818 | M159: 74.30226273 | N159: 81.65747853 | O159: 89.01269434 | P159: 96.36791014 | Q159: 103.7231259
B160: Magazines and Catalogues | C160: 22.22817338 | D160: 17.5256942 | E160: 9.921974635 | F160: 13.704926 | G160: 30.04739529 | H160: 9.995845811 | I160: 18.92214072 | J160: 46.65300383 | K160: 84.14532614 | L160: 85.34127818 | M160: 74.30226273 | N160: 81.65747853 | O160: 89.01269434 | P160: 96.36791014 | Q160: 103.7231259
B161: Telephone Books | C161: 60.18841602 | D161: 55.20903105 | E161: 52.86353296 | F161: 54.92628215 | G161: 75.70487588 | H161: 68.63910516 | I161: 108.9816066 | J161: 185.9995132 | K161: 136.5645958 | L161: 119.2762608 | M161: 155.9039773 | N161: 167.5528237 | O161: 179.2016701 | P161: 190.8505165 | Q161: 202.499363
B162: Other Printed Paper | C162: 102.326306 | D162: 97.62350307 | E162: 98.78789011 | F162: 98.8894309 | G162: 120.565381 | H162: 76.63940167 | I162: 60.8223463 | J162: 75.20516191 | K162: 95.00490505 | L162: 96.27147093 | M162: 80.5847605 | N162: 78.47042973 | O162: 76.35609897 | P162: 74.24176821 | Q162: 72.12743744
A163: Printed Paper Total
A165: PACKAGING
A166: Paper Based Packaging | B166: Corrugated Cardboard | C166: 348.1005318 | D166: 335.0427921 | E166: 369.0459433 | F166: 358.193437 | G166: 399.3385076 | H166: 370.3357932 | I166: 403.9372448 | J166: 416.3284789 | K166: 370.2805798 | L166: 364.6783119 | M166: 398.2116928 | N166: 402.6996074 | O166: 407.1875221 | P166: 411.6754368 | Q166: 416.1633515
B167: Boxboard | C167: 328.2618422 | D167: 322.4727639 | E167: 351.8577224 | F167: 340.7320206 | G167: 385.7716594 | H167: 956.4013227 | I167: 1100.688102 | J167: 992.5288364 | K167: 195.7313801 | L167: 198.9578204 | M167: 650.7712669 | N167: 675.0314341 | O167: 699.2916014 | P167: 723.5517686 | Q167: 747.8119359
B168: Gable Top Cartons | C168: 375.4741633 | D168: 372.7352196 | E168: 424.7455907 | F168: 407.7306448 | G168: 451.6094507 | H168: 840.0194175 | I168: 1296.934299 | J168: 842.2533221 | K168: 1032.12191 | L168: 1072.665587 | M168: 1246.095268 | N168: 1343.27096 | O168: 1440.446652 | P168: 1537.622345 | Q168: 1634.798037
B169: Paper Laminants | C169: 752.6049093 | D169: 746.5787562 | E169: 847.8450469 | F169: 816.3863684 | G169: 894.6445545 | H169: 1018.212931 | I169: 1233.361877 | J169: 765.984128 | K169: 882.0510714 | L169: 960.4760676 | M169: 1017.959136 | N169: 1040.894511 | O169: 1063.829886 | P169: 1086.765262 | Q169: 1109.700637
B170: Aseptic Containers | C170: 752.6049093 | D170: 746.5787562 | E170: 847.8450469 | F170: 816.3863684 | G170: 894.6445545 | H170: 364.5947981 | I170: 383.4251965 | J170: 230.3323992 | K170: 791.9563502 | L170: 864.5659818 | M170: 549.5866461 | N170: 527.8217752 | O170: 506.0569043 | P170: 484.2920334 | Q170: 462.5271625
A171: Paper Packaging Total
A172: Plastic Packaging | B172: PET Bottles | C172: 810.5472756 | D172: 777.408631 | E172: 759.3381347 | F172: 745.3376961 | G172: 842.4296462 | H172: 880.0815023 | I172: 1000.17006 | J172: 1088.598101 | K172: 912.0530987 | L172: 855.3160808 | M172: 993.5906659 | N172: 1016.583874 | O172: 1039.577082 | P172: 1062.57029 | Q172: 1085.563497
B173: HDPE Bottles | C173: 718.8484479 | D173: 679.2823883 | E173: 602.401272 | F173: 598.3903443 | G173: 577.6703215 | H173: 565.3031051 | I173: 685.066567 | J173: 788.4345772 | K173: 770.1621419 | L173: 722.5934377 | M173: 732.4049657 | N173: 743.6030939 | O173: 754.8012222 | P173: 765.9993504 | Q173: 777.1974787
B174: Plastic Film | C174: 1471.70386 | D174: 1446.865688 | E174: 1601.263676 | F174: 1540.022898 | G174: 1691.712298 | H174: 2318.064486 | I174: 1893.593329 | J174: 2017.478501 | K174: 1876.535323 | L174: 1861.574926 | M174: 2114.703653 | N174: 2177.034954 | O174: 2239.366255 | P174: 2301.697556 | Q174: 2364.028857
B175: Plastic Laminants | C175: 1478.537129 | D175: 1467.751753 | E175: 1672.557496 | F175: 1605.55627 | G175: 1778.341644 | H175: 2379.689379 | I175: 1923.795961 | J175: 2043.922937 | K175: 1904.612301 | L175: 1894.73742 | M175: 2155.507578 | N175: 2217.427096 | O175: 2279.346614 | P175: 2341.266132 | Q175: 2403.18565
B176: Polystyrene | C176: 1707.055624 | D176: 1708.972677 | E176: 1935.303061 | F176: 1861.067809 | G176: 2090.073382 | H176: 2604.267948 | I176: 2257.213218 | J176: 2384.30161 | K176: 2252.391718 | L176: 2255.436264 | M176: 2528.507751 | N176: 2605.398554 | O176: 2682.289358 | P176: 2759.180162 | Q176: 2836.070965
B177: Other Plastics | C177: 950.3206417 | D177: 926.831217 | E177: 1021.688875 | F177: 983.2093733 | G177: 1008.612417 | H177: 1176.529644 | I177: 1119.288414 | J177: 1216.432131 | K177: 1304.826776 | L177: 1241.842715 | M177: 1322.27616 | N177: 1363.606695 | O177: 1404.937229 | P177: 1446.267764 | Q177: 1487.598298
A178: Plastics Total
A179: Steel Packaging | B179: Steel Food & Beverage Cans | C179: 222.9472768 | D179: 179.3697813 | E179: 179.3055339 | F179: 177.0607534 | G179: 167.5216714 | H179: 115.408853 | I179: 148.8949841 | J179: 140.5839213 | K179: 129.270737 | L179: 89.26733384 | M179: 92.16205174 | N179: 80.74368213 | O179: 69.32531252 | P179: 57.90694291 | Q179: 46.48857331
B180: Steel Aerosols | C180: 222.9472768 | D180: 179.3697813 | E180: 179.3055339 | F180: 177.0607534 | G180: 167.5216714 | H180: 115.408853 | I180: 148.8949841 | J180: 140.5839213 | K180: 129.270737 | L180: 89.26733384 | M180: 92.16205174 | N180: 80.74368213 | O180: 69.32531252 | P180: 57.90694291 | Q180: 46.48857331
B181: Steel Paint Cans | C181: 222.9472768 | D181: 179.3697813 | E181: 179.3055339 | F181: 177.0607534 | G181: 167.5216714 | H181: 115.408853 | I181: 148.8949841 | J181: 140.5839213 | K181: 129.270737 | L181: 89.26733384 | M181: 92.16205174 | N181: 80.74368213 | O181: 69.32531252 | P181: 57.90694291 | Q181: 46.48857331
A182: Steel Total
A183: Aluminum Packaging | B183: Aluminum Food & Beverage Cans | C183: -622.3941274 | D183: -563.1129411 | E183: -700.3415712 | F183: -606.4242043 | G183: -883.5421065 | H183: -937.605251 | I183: -532.1340088 | J183: -293.0330433 | K183: -282.3047332 | L183: -285.9818991 | M183: -330.7301356 | N183: -287.1015441 | O183: -243.4729526 | P183: -199.8443612 | Q183: -156.2157697
B184: Other Aluminum Packaging | C184: -622.3941274 | D184: -563.1129411 | E184: -700.3415712 | F184: -606.4242043 | G184: -883.5421065 | H184: -937.605251 | I184: -532.1340088 | J184: -293.0330433 | K184: -282.3047332 | L184: -285.9818991 | M184: -330.7301356 | N184: -287.1015441 | O184: -243.4729526 | P184: -199.8443612 | Q184: -156.2157697
A185: Aluminum Total
A186: Glass | B186: Clear Glass | C186: 158.6060864 | D186: 154.5962327 | E186: 169.5898513 | F186: 163.2034694 | G186: 182.7338077 | H186: 163.7686678 | I186: 151.8753659 | J186: 138.7365007 | K186: 109.5073959 | L186: 110.0252549 | M186: 118.2620784 | N186: 112.4434994 | O186: 106.6249203 | P186: 100.8063413 | Q186: 94.98776219
B187: Coloured Glass | C187: 150.9038697 | D187: 149.8030823 | E187: 168.2117867 | F187: 161.5749858 | G187: 175.6509076 | H187: 144.067602 | I187: 118.0731923 | J187: 106.7312265 | K187: 104.1011488 | L187: 104.5876381 | M187: 98.16217375 | N187: 90.85156098 | O187: 83.54094821 | P187: 76.23033545 | Q187: 68.91972268
A188: Glass Total
A190: PACKAGING TOTAL

Sheet Sheet10
A1: 189766.6459 | B1: 179222.6604 | C1: 184.4202987 | D1: 67.50188459 | E1: =C1-D1 -> 116.9184141 | G1: 173.2880698 | H1: ='Scenario 1'!D5*Sheet10!B1 -> 10477214.61
A2: 125512.5656 | B2: 118538.7233 | C2: 184.4202987 | D2: 67.50188459 | E2: =C2-D2 -> 116.9184141 | G2: 173.2880698 | H2: ='Scenario 1'!D6*Sheet10!B2 -> 6929679.767
A3: 70950.84472 | B3: 55947.16927 | C3: 184.4202987 | D3: 67.50188459 | E3: =C3-D3 -> 116.9184141 | G3: 173.2880698 | H3: ='Scenario 1'!D7*Sheet10!B3 -> 3270627.151
A4: 8011.880339 | B4: 7851.642732 | C4: 194.5097777 | D4: 68.80582775 | E4: =C4-D4 -> 125.7039499 | G4: 210.886934 | H4: ='Scenario 1'!D8*Sheet10!B4 -> 493491.2524
A5: 118427.4189 | B5: 62955.15859 | C5: 194.7786012 | D5: 68.17457461 | E5: =C5-D5 -> 126.6040265 | G5: 185.3113766 | H5: ='Scenario 1'!D9*Sheet10!B5 -> 3985188.284
H6: ='Scenario 1'!D10*Sheet10!B6 -> 0
A7: 153008.8896 | B7: 149485.4319 | C7: 487.8055779 | D7: 98.16660375 | E7: =C7-D7 -> 389.6389741 | G7: 482.5160767 | H7: ='Scenario 1'!D11*Sheet10!B7 -> 29122675.17
A8: 165973.6682 | B8: 76754.81037 | C8: 300.7100604 | D8: 73.60304998 | E8: =C8-D8 -> 227.1070104 | G8: 287.6713607 | H8: ='Scenario 1'!D12*Sheet10!B8 -> 8715777.76
A9: 15851.81315 | B9: 8222.502602 | C9: 1175.575772 | D9: 77.66017263 | E9: =C9-D9 -> 1097.9156 | G9: 1170.59989 | H9: ='Scenario 1'!D13*Sheet10!B9 -> 4513806.937
A10: 40881.18656 | B10: 3140.35568 | C10: 1080.195276 | D10: 0 | E10: =C10-D10 -> 1080.195276 | G10: 960.4760676 | H10: ='Scenario 1'!D14*Sheet10!B10 -> 1696098.686
A11: 6114.296 | B11: 1296.236114 | C11: 1080.195276 | D11: 76.84695162 | E11: =C11-D11 -> 1003.348325 | G11: 960.4760676 | H11: ='Scenario 1'!D15*Sheet10!B11 -> 650288.1669
H12: ='Scenario 1'!D16*Sheet10!B12 -> 0
A13: 55506.60784 | B13: 36551.40092 | C13: 1321.504121 | D13: 339.1096505 | E13: =C13-D13 -> 982.3944705 | G13: 1280.549808 | H13: ='Scenario 1'!D17*Sheet10!B13 -> 17953947.08
A14: 29394.54065 | B14: 15469.02239 | C14: 1228.981892 | D14: 462.6616881 | E14: 766.320204 | G14: 1196.369997 | H14: ='Scenario 1'!D18*Sheet10!B14 -> 5927112.197
A15: 58045.03935 | B15: 6308.438708 | C15: 2511.308283 | D15: 29.35506088 | E15: 2481.953222 | G15: 1894.73742 | H15: ='Scenario 1'!D19*Sheet10!B15 -> 7828624.889
A16: 36088.30012 | B16: 955.3612325 | C16: 2467.76382 | D16: 0 | E16: 2467.76382 | G16: 1894.73742 | H16: ='Scenario 1'!D20*Sheet10!B16 -> 1178802.943
A17: 22679.14044 | B17: 1423.101471 | C17: 1782.372733 | D17: 105.525301 | E17: 1676.847432 | G17: 2292.097274 | H17: ='Scenario 1'!D21*Sheet10!B17 -> 1193162.023
A18: 85232.99361 | B18: 28393.91289 | C18: 1383.293397 | D18: 181.0069698 | E18: 1202.286428 | G18: 1387.837477 | H18: ='Scenario 1'!D22*Sheet10!B18 -> 17068808.05
H19: ='Scenario 1'!D23*Sheet10!B19 -> 0
A20: 41440.498 | B20: 30070.76204 | C20: 358.6575833 | D20: 248.3861874 | E20: =C20-D20 -> 110.2713959 | G20: 352.1542069 | H20: ='Scenario 1'!D24*Sheet10!B20 -> 1657972.453
A21: 3766.002302 | B21: 680.3963706 | C21: 358.6575833 | D21: 248.3861874 | E21: =C21-D21 -> 110.2713959 | G21: 352.1542069 | H21: ='Scenario 1'!D25*Sheet10!B21 -> 37514.12878
A22: 4614.595162 | B22: 292.4517894 | C22: 358.6575833 | D22: 248.3861874 | E22: =C22-D22 -> 110.2713959 | G22: 352.1542069 | H22: ='Scenario 1'!D26*Sheet10!B22 -> 16124.53353
H23: ='Scenario 1'!D27*Sheet10!B23 -> 0
A24: 21836.81604 | B24: 10640.57194 | C24: 1131.934567 | D24: 1390.399447 | E24: =C24-D24 -> -258.4648802 | G24: 1114.35292 | H24: ='Scenario 1'!D28*Sheet10!B24 -> -1375107.075
A25: 4310.955409 | B25: 221.3285009 | C25: 1131.934567 | D25: 1390.399447 | E25: =C25-D25 -> -258.4648802 | G25: 1114.35292 | H25: ='Scenario 1'!D29*Sheet10!B25 -> -28602.82223
H26: ='Scenario 1'!D30*Sheet10!B26 -> 0
A27: 78947.2212 | B27: 70053.83995 | C27: 144.5129587 | D27: 16.67381139 | E27: =C27-D27 -> 127.8391473 | G27: 135.9918818 | H27: ='Scenario 1'!D31*Sheet10!B27 -> 4477811.583
A28: 25568.42339 | B28: 20028.96819 | C28: 135.5582953 | D28: 15.47668297 | E28: =C28-D28 -> 120.0816123 | G28: 125.4250152 | H28: ='Scenario 1'!D32*Sheet10!B28 -> 1202555.397
A29: =SUM(A1:A28) -> 1361930.342 | B29: =SUM(B1:B28) -> 884504.2474 | C29: =SUMPRODUCT(C1:C28,B1:B28) -> 353075299.9 | D29: =SUMPRODUCT(D1:D28,B1:B28) -> 99088153.53 | E29: =SUMPRODUCT(E1:E28,B1:B28)/SUM(B1:B28) -> 287.1519804 | H29: ='Scenario 1'!D33*Sheet10!B29 -> 0
A30: 2014 | B30: =B29/A29 -> 0.6494489622 | E30: =E29*Inputs!C50 -> 143.5759902
A32: Generation (Sheet 1) | B32: Recovery (Sheet 1) | C32: Gross Costs | D32: Revenue | E32: Net System Costs
A33: 182016.1068 | B33: 167185.4296 | C33: 202.794801 | D33: 99.0716751 | E33: 103.7231259
A34: 165067.3797 | B34: 146762.0025 | C34: 202.794801 | D34: 99.0716751 | E34: 103.7231259
A35: 78529.58742 | B35: 73070.16539 | C35: 202.794801 | D35: 99.0716751 | E35: 103.7231259
A36: 7595.649638 | B36: 6743.522721 | C36: 297.2624411 | D36: 94.76307814 | E36: 202.499363
A37: 119097.1986 | B37: 71572.72024 | C37: 173.6618017 | D37: 101.5343642 | E37: 72.12743744
A39: 197863.4695 | B39: 190279.4541 | C39: 555.6466756 | D39: 139.4833242 | E39: 416.1633515
A40: 163440.4631 | B40: 80443.89325 | C40: 853.5667352 | D40: 105.7547993 | E40: 747.8119359
A41: 9746.188701 | B41: 6458.674447 | C41: 1740.540049 | D41: 105.7420118 | E41: 1634.798037
A42: 45948.69047 | B42: 1225.740841 | C42: 1119.217749 | D42: 9.517111639 | E42: 1109.700637
A43: 5467.735962 | B43: 2883.835374 | C43: 576.3839099 | D43: 113.8567474 | E43: 462.5271625
A45: 65301.36293 | B45: 38482.70369 | C45: 1530.214839 | D45: 444.6513414 | E45: 1085.563497
A46: 30993.09972 | B46: 19252.34409 | C46: 1375.057885 | D46: 597.8604062 | E46: 777.1974787
A47: 50335.31634 | B47: 5031.784618 | C47: 2403.18565 | D47: 39.15679335 | E47: 2364.028857
A48: 18915.46755 | B48: 26 | C48: 2403.18565 | D48: 0 | E48: 2403.18565
A49: 21895.73372 | B49: 1661.987492 | C49: 2872.636658 | D49: 36.56569248 | E49: 2836.070965
A50: 93176.66953 | B50: 24159.18326 | C50: 1705.593857 | D50: 217.9955589 | E50: 1487.598298
A52: 38675.41477 | B52: 28174.28042 | C52: 401.8991769 | D52: 355.4106035 | E52: 46.48857331
A53: 4173.109384 | B53: 1087.292965 | C53: 401.8991769 | D53: 355.4106035 | E53: 46.48857331
A54: 3972.164208 | B54: 705.483746 | C54: 401.8991769 | D54: 355.4106035 | E54: 46.48857331
A56: 21121.25082 | B56: 10503.49009 | C56: 1370.596253 | D56: 1526.812022 | E56: -156.2157697
A57: 5428.671126 | B57: 492.8263862 | C57: 1370.596253 | D57: 1526.812022 | E57: -156.2157697
A59: 77978.71224 | B59: 73137.95113 | C59: 140.2292381 | D59: 45.24147589 | E59: 94.98776219
A60: 39736.45997 | B60: 29328.21879 | C60: 108.5838574 | D60: 39.6641347 | E60: 68.91972268
A62: 2019
A65: Municipal Grouping | B65: Generation | C65: Marketed or Calculated Marketed Tonnes | D65: Recycling Rate | E65: Residential Collection Costs | F65: Residential Processing Costs | G65: Residential Depot/Transfer Costs | H65: Residential Promotion & Education Costs | I65: Interest on Municipal Capital | J65: Admin Costs | K65: Gross Costs | L65: Total Gross Revenue | M65: Net Cost
A66: Large Urban | B66: 674290.8117 | C66: 426542.74 | D66: =C66/B66 -> 0.6325797899 | E66: 188.829009 | F66: 137.1379191 | G66: 24.81265301 | H66: 7.974631944 | I66: 8.836070964 | J66: 13.88715597 | K66: 381.47744 | L66: 103.892068 | M66: =K66-L66 -> 277.585372
A67: Urban Regional | B67: 315332.6891 | C67: 229743.24 | D67: =C67/B67 -> 0.7285741311 | E67: 197.180157 | F67: 96.7237544 | G67: 2.62960303 | H67: 6.858970954 | I67: 5.954404143 | J67: 10.64909649 | K67: 319.995986 | L67: 118.3947324 | M67: =K67-L67 -> 201.6012536
A68: Medium Urban | B68: 86463.84565 | C68: 51230.33511 | D68: 0.5925058587 | E68: 144.1836303 | F68: 89.7888423 | G68: 10.46898852 | H68: 7.646891615 | I68: 3.437511967 | J68: 9.405445796 | K68: 264.9313105 | L68: 79.02760252 | M68: 185.903708
A69: Rural Regional | B69: 173662.1525 | C69: 96390.61955 | D69: 0.5550467858 | E69: 232.0042002 | F69: 119.7109757 | G69: 28.71759299 | H69: 7.40006946 | I69: 4.446891741 | J69: 14.74347573 | K69: 407.0232058 | L69: 104.3007938 | M69: 302.7224121
A70: Small Urban | B70: 38679.50095 | C70: 25987.49194 | D70: 0.6718673019 | E70: 190.0216324 | F70: 40.68018616 | G70: 10.16680296 | H70: 3.390387968 | I70: 0.4261242303 | J70: 7.731370171 | K70: 252.4165039 | L70: 37.69588779 | M70: 214.7206161
A71: Rural Collection - North | B71: 22803.3807 | C71: 10226.45037 | D71: 0.4484620285 | E71: 249.1599058 | F71: 63.3684071 | G71: 95.72773298 | H71: 12.59536744 | I71: 6.610426647 | J71: 17.48529779 | K71: 444.9471378 | L71: 16.77648097 | M71: 428.1706568
A72: Rural Collection - South | B72: 75372.40467 | C72: 40982.42892 | D72: 0.5437325385 | E72: 317.3857254 | F72: 68.68177446 | G72: 57.18154125 | H72: 7.42895109 | I72: 3.933930815 | J72: 16.33796526 | K72: 470.9498882 | L72: 51.22064151 | M72: 419.7292467
A73: Rural Depot - North | B73: 16414.60266 | C73: 5042.65875 | D73: 0.3072056543 | E73: 21.317901 | F73: 84.93227308 | G73: 510.5247683 | H73: 5.475030409 | I73: 13.81721894 | J73: 29.01306379 | K73: 665.0802555 | L73: 39.05824085 | M73: 626.0220147
A74: Rural Depot - South | B74: 18573.97774 | C74: 6778.423534 | D74: 0.3649419434 | E74: 47.2208956 | F74: 41.56607928 | G74: 386.9000833 | H74: 10.17344515 | I74: 1.480643685 | J74: 21.024092 | K74: 508.365239 | L74: 7.396241877 | M74: 500.9689971
A75: 2012
A78: 353075299.9 | B78: Gross System Cost
A79: 253987146.3 | B79: Net Cost
A81: 884504 | B81: Tonnes Recovered
A83: 0.6494 | B83: Recyling Rate
A85: =A79*Inputs!C50 -> 126993573.2 | B85: Cost to Industry
A86: =A79*(1-Inputs!C50) -> 126993573.2 | B86: Cost to Municipalities
A96: 221.7793437 | B96: Net Cost Per Tonne

Sheet 2012 Macro Cost Data (hidden)
B2: 2012 Blue Box Financial Details
A4: Municipal Grouping | B4: Marketed or Calculated Marketed Tonnes | C4: Residential Collection Costs | D4: Residential Processing Costs | E4: Residential Depot/Transfer Costs | F4: Residential Promotion & Education Costs | G4: Interest on Municipal Capital | H4: Adminstration Costs | I4: Gross Costs | J4: Total Gross Revenue | K4: Net Cost
A5: 1 | B5: 41298.58 | C5: 5130395.68 | D5: 3219575.71 | E5: 48119.7 | F5: 200371.69 | G5: 21475.35 | H5: 310533.7 | I5: 8930471.83 | J5: 1302216.65 | K5: 7628255.18
A6: 1 | B6: 38422.15 | C6: 7922612.29 | D6: 3479644.93 | E6: 124144.33 | F6: 145501.86 | G6: 173053.91 | H6: 394518.97 | I6: 12239476.29 | J6: 4535360.72 | K6: 7704115.57
A7: 1 | B7: 26669.9 | C7: 5084528.22 | D7: 4153375.59 | E7: 66046.29 | F7: 228337.97 | G7: 268180.85 | H7: 332513 | I7: 10132981.92 | J7: 3605121.89 | K7: 6527860.03
A8: 1 | B8: 86950.4 | C8: 19937202.43 | D8: 14095723.1 | E8: 286940.4 | F8: 673487.78 | G8: 943555.54 | H8: 1242238.82 | I8: 37179148.07 | J8: 9639556.46 | K8: 27539591.61
A9: 1 | B9: 156465 | C9: 33215934.3 | D9: 22397573.54 | E9: 7232374 | F9: 1806726 | G9: 1578717.86 | H9: 2811315.78 | I9: 69042641.48 | J9: 16074934 | K9: 52967707.48
A10: 1 | B10: 76736.71 | C10: 9252969.95 | D10: 11149290.92 | E10: 2826032.28 | F10: 347096.06 | G10: 783978.41 | H10: 832345.29 | I10: 25191712.91 | J10: 9157217.61 | K10: 16034495.3
B11: 426542.74 | C11: 188.829009 | D11: 137.1379191 | E11: 24.81265301 | F11: 7.974631944 | G11: 8.836070964 | H11: 13.88715597 | I11: 381.47744 | J11: 103.892068 | K11: 277.585372
A12: 2 | B12: 44429.08 | C12: 9578932.45 | D12: 5314154.69 | E12: 241957.32 | F12: 469394.3 | G12: 474426.19 | H12: 556715.6 | I12: 16635580.55 | J12: 6277101.36 | K12: 10358479.19
A13: 2 | B13: 24918.31 | C13: 3756911.15 | D13: 2850965.04 | E13: 10045.69 | F13: 189889.61 | G13: 239425.16 | H13: 254074.8 | I13: 7301311.45 | J13: 3405334.58 | K13: 3895976.87
A14: 2 | B14: 39464.89 | C14: 6658374.74 | D14: 4066967.16 | E14: 162198.55 | F14: 434786.97 | G14: 352507.01 | H14: 423126.72 | I14: 12097961.15 | J14: 4392299.36 | K14: 7705661.79
A15: 2 | B15: 60885.53 | C15: 12603398.73 | D15: 5575973.43 | E15: 0 | F15: 59444.22 | G15: 132805.27 | H15: 608304.67 | I15: 18979926.32 | J15: 7949330.93 | K15: 11030595.39
A16: 2 | B16: 25511.02 | C16: 5836446.95 | D16: 756103.76 | E16: 162361.36 | F16: 264060.9 | G16: 19750.44 | H16: 239740.53 | I16: 7278463.94 | J16: 989039.97 | K16: 6289423.97
A17: 2 | B17: 34534.41 | C17: 6866744.12 | D17: 3657464.64 | E17: 27570.6 | F17: 158226.21 | G17: 149070.03 | H17: 364595.61 | I17: 11223671.21 | J17: 4187283.23 | K17: 7036387.98
B18: 229743.24 | C18: 197.180157 | D18: 96.7237544 | E18: 2.62960303 | F18: 6.858970954 | G18: 5.954404143 | H18: 10.64909649 | I18: 319.995986 | J18: 118.3947324 | K18: 201.6012536
A19: 3 | B19: 11589.59511 | C19: 1532833.43 | D19: 0 | E19: 111555.26 | F19: 143655.78 | G19: 4548.99 | H19: 60806.82 | I19: 1853400.28 | J19: 0 | K19: 1853400.28
A20: 3 | B20: 6607.44 | C20: 1715467.76 | D20: 603430.56 | E20: 20187.07 | F20: 55410.28 | G20: 1793.52 | H20: 73957.61 | I20: 2470246.8 | J20: 991471.03 | K20: 1478775.77
A21: 3 | B21: 8415.73 | C21: 1098724.37 | D21: 2211510.97 | E21: 73433.6 | F21: 72650.28 | G21: 163029.6 | H21: 180967.44 | I21: 3800316.26 | J21: 1123351.79 | K21: 2676964.47
A22: 3 | B22: 8517.7 | C22: 1161008.14 | D22: 647209.66 | E22: 54145.01 | F22: 39439.99 | G22: 1717.65 | H22: 58988.36 | I22: 1962508.81 | J22: 1042460.4 | K22: 920048.41
A23: 3 | B23: 3873.07 | C23: 737100.68 | D23: 414561.63 | E23: 0 | F23: 6922.72 | G23: 0 | H23: 36349.19 | I23: 1194934.22 | J23: 629146.05 | K23: 565788.17
A24: 3 | B24: 6013.93 | C24: 851172.44 | D24: 459483.16 | E24: 69911.84 | F24: 6305.09 | G24: 0 | H24: 43078.74 | I24: 1429951.27 | J24: 262175.29 | K24: 1167775.98
A25: 3 | B25: 6212.87 | C25: 290268.88 | D25: 263716.5 | E25: 207097.01 | F25: 67368.68 | G25: 5015.13 | H25: 27695.98 | I25: 861162.18 | J25: 6 | K25: 861156.18
B26: 51230.33511 | C26: 144.1836303 | D26: 89.7888423 | E26: 10.46898852 | F26: 7.646891615 | G26: 3.437511967 | H26: 9.405445796 | I26: 264.9313105 | J26: 79.02760252 | K26: 185.903708
A27: 4 | B27: 11868.21 | C27: 3528377.7 | D27: 1765598.5 | E27: 20269 | F27: 54847.01 | G27: 219765.71 | H27: 278846.25 | I27: 5867704.17 | J27: 1422235.28 | K27: 4445468.89
A28: 4 | B28: 4359.68 | C28: 815055.89 | D28: 491211.67 | E28: 134478.63 | F28: 26714.28 | G28: 30919.09 | H28: 74918.98 | I28: 1573298.54 | J28: 675186.47 | K28: 898112.07
A29: 4 | B29: 4232.23955 | C29: 842300.1 | D29: 0 | E29: 272867.6 | F29: 14198.5 | G29: 2526.2 | H29: 38660.56 | I29: 1170552.96 | J29: 4848.37 | K29: 1165704.59
A30: 4 | B30: 13310.88 | C30: 2921752.65 | D30: 1756372.88 | E30: 170155.94 | F30: 43496.38 | G30: 12066.71 | H30: 156888.98 | I30: 5060733.54 | J30: 702958.33 | K30: 4357775.21
A31: 4 | B31: 5857.16 | C31: 1586532.04 | D31: 134781.19 | E31: 640586.88 | F31: 94088.46 | G31: 13270.69 | H31: 83812.33 | I31: 2553071.59 | J31: 226777.61 | K31: 2326293.98
A32: 4 | B32: 9280.22 | C32: 1944212.71 | D32: 1402234.01 | E32: 0 | F32: 40699.18 | G32: 26236.32 | H32: 136388.01 | I32: 3549770.23 | J32: 1189804.37 | K32: 2359965.86
A33: 4 | B33: 5843.74 | C33: 1549703.93 | D33: 871320.77 | E33: 779793.82 | F33: 46987.71 | G33: 1844.89 | H33: 104754.07 | I33: 3354405.19 | J33: 457763.33 | K33: 2896641.86
A34: 4 | B34: 4677.18 | C34: 1466156.39 | D34: 719069.37 | E34: 0 | F34: 56429.23 | G34: 14455.73 | H34: 71646.61 | I34: 2327757.33 | J34: 513673.7 | K34: 1814083.63
A35: 4 | B35: 3895.94 | C35: 758595.38 | D35: 184152.37 | E35: 50968.07 | F35: 36279.58 | G35: 10165.7 | H35: 36962.8 | I35: 1077123.9 | J35: 410300.04 | K35: 666823.86
A36: 4 | B36: 5461.1 | C36: 964184.99 | D36: 1609197.85 | E36: 48213.06 | F36: 95559.14 | G36: 72137.87 | H36: 120720.71 | I36: 2910013.62 | J36: 705223.69 | K36: 2204789.93
A37: 4 | B37: 7146.65 | C37: 1322872.63 | D37: 722557.23 | E37: 133251.58 | F37: 45011.31 | G37: 3022.21 | H37: 77056.93 | I37: 2303771.89 | J37: 893993.97 | K37: 1409777.92
A38: 4 | B38: 4707.1 | C38: 1048946.32 | D38: 513343.79 | E38: 188630.02 | F38: 52629.88 | G38: 287.73 | H38: 56637.11 | I38: 1860474.85 | J38: 667145.07 | K38: 1193329.78
A39: 4 | B39: 10751.01 | C39: 2347903.02 | D39: 883842.82 | E39: 34068.69 | F39: 51638.61 | G39: 11992.57 | H39: 109856.32 | I39: 3439302.03 | J39: 1380202.08 | K39: 2059099.95
A40: 4 | B40: 4999.51 | C40: 1266434.85 | D40: 485332.66 | E40: 294823.29 | F40: 54718.01 | G40: 9947.23 | H40: 73983.1 | I40: 2185239.14 | J40: 803505.82 | K40: 1381733.32
B41: 96390.61955 | C41: 232.0042002 | D41: 119.7109757 | E41: 28.71759299 | F41: 7.40006946 | G41: 4.446891741 | H41: 14.74347573 | I41: 407.0232058 | J41: 104.3007938 | K41: 302.7224121
A42: 5 | B42: 642.00449 | C42: 147447.99 | D42: 4873.68 | E42: 0 | F42: 1209.19 | G42: 0 | H42: 4630.11 | I42: 158160.97 | J42: 268 | K42: 157892.97
A43: 5 | B43: 382.737048 | C43: 118234.91 | D43: 41132.77 | E43: 0 | F43: 6295.75 | G43: 0 | H43: 5182.67 | I43: 170846.1 | J43: 35307.6 | K43: 135538.5
A44: 5 | B44: 1376.472448 | C44: 199680.14 | D44: 0 | E44: 0 | F44: 9669.12 | G44: 0 | H44: 6473.86 | I44: 215823.12 | J44: 0 | K44: 215823.12
A45: 5 | B45: 623.18 | C45: 254122.62 | D45: 54026.87 | E45: 0 | F45: 607.5 | G45: 0 | H45: 9274.86 | I45: 318031.85 | J45: 82682.9 | K45: 235348.95
A46: 5 | B46: 235.174624 | C46: 48493.83 | D46: 16723.91 | E46: 0 | F46: 2687.5 | G46: 0 | H46: 2090.91 | I46: 69996.15 | J46: 0 | K46: 69996.15
A47: 5 | B47: 2598.56 | C47: 762792.9 | D47: 508746.01 | E47: 40781.93 | F47: 14255.49 | G47: 339.28 | H47: 42161.09 | I47: 1369076.7 | J47: 356109.04 | K47: 1012967.66
A48: 5 | B48: 121.17117 | C48: 27728.31 | D48: 0 | E48: 0 | F48: 341.27 | G48: 0 | H48: 848.91 | I48: 28918.49 | J48: 220 | K48: 28698.49
A49: 5 | B49: 416.71232 | C49: 81128.85 | D49: 0 | E49: 0 | F49: 366 | G49: 0 | H49: 2452.17 | I49: 83947.02 | J49: 0 | K49: 83947.02
A50: 5 | B50: 524.86075 | C50: 144835.4 | D50: 0 | E50: 0 | F50: 810.81 | G50: 0 | H50: 4436.77 | I50: 150082.98 | J50: 360 | K50: 149722.98
A51: 5 | B51: 158.16816 | C51: 51588.89 | D51: 13950.2 | E51: 0 | F51: 153.13 | G51: 0 | H51: 1973.83 | I51: 67666.05 | J51: 0 | K51: 67666.05
A52: 5 | B52: 3605.5768 | C52: 648980.33 | D52: 0 | E52: 0 | F52: 557.56 | G52: 1269.35 | H52: 19835.19 | I52: 670642.43 | J52: 0 | K52: 670642.43
A53: 5 | B53: 2948.44 | C53: 424584.81 | D53: 0 | E53: 5647.84 | F53: 8188.28 | G53: 645.11 | H53: 14035.79 | I53: 453101.83 | J53: 2348.59 | K53: 450753.24
A54: 5 | B54: 2068.16 | C54: 255888.92 | D54: 222113.99 | E54: 60680.28 | F54: 20837.38 | G54: 6407.31 | H54: 19326.76 | I54: 585254.64 | J54: 281119.82 | K54: 304134.82
A55: 5 | B55: 358.02 | C55: 106777.55 | D55: 21389.11 | E55: 87273.83 | F55: 1658.07 | G55: 0 | H55: 7909.47 | I55: 225008.03 | J55: 2874.71 | K55: 222133.32
A56: 5 | B56: 543.49 | C56: 111648.45 | D56: 95307.86 | E56: 0 | F56: 1069.8 | G56: 0 | H56: 6262.18 | I56: 214288.29 | J56: 75808.66 | K56: 138479.63
A57: 5 | B57: 3130.56 | C57: 116747.96 | D57: 0 | E57: 0 | F57: 237.5 | G57: 0 | H57: 3514.31 | I57: 120499.77 | J57: 0 | K57: 120499.77
A58: 5 | B58: 257.91626 | C58: 79104 | D58: 0 | E58: 0 | F58: 2412.5 | G58: 0 | H58: 2591.09 | I58: 84107.59 | J58: 0 | K58: 84107.59
A59: 5 | B59: 457.60892 | C59: 169365.71 | D59: 0 | E59: 24557.96 | F59: 860 | G59: 767.31 | H59: 6390.23 | I59: 201941.21 | J59: 0 | K59: 201941.21
A60: 5 | B60: 487.61 | C60: 93380.96 | D60: 0 | E60: 0 | F60: 1535.49 | G60: 0 | H60: 2878.2 | I60: 97794.65 | J60: 0 | K60: 97794.65
A61: 5 | B61: 576.83 | C61: 161764.65 | D61: 78911.61 | E61: 0 | F61: 8357.84 | G61: 0 | H61: 7697.95 | I61: 256732.05 | J61: 91499.08 | K61: 165232.97
A62: 5 | B62: 2142.03 | C62: 421084.73 | D62: 0 | E62: 0 | F62: 2894.23 | G62: 25.6 | H62: 12778.53 | I62: 436783.09 | J62: 24722.03 | K62: 412061.06
A63: 5 | B63: 2265.1 | C63: 489647.86 | D63: 0 | E63: 45267.87 | F63: 2449.99 | G63: 1619.94 | H63: 17446.7 | I63: 556432.36 | J63: 26194.95 | K63: 530237.41
A64: 5 | B64: 67.10895 | C64: 23155.87 | D64: 0 | E64: 0 | F64: 653.28 | G64: 0 | H64: 727.34 | I64: 24536.49 | J64: 106.2 | K64: 24430.29
B65: 25987.49194 | C65: 190.0216324 | D65: 40.68018616 | E65: 10.16680296 | F65: 3.390387968 | G65: 0.4261242303 | H65: 7.731370171 | I65: 252.4165039 | J65: 37.69588779 | K65: 214.7206161
A66: 6 | B66: 218.02 | C66: 40051.18 | D66: 138821.06 | E66: 0 | F66: 1735.58 | G66: 519.53 | H66: 9056.37 | I66: 190183.72 | J66: 24436.92 | K66: 165746.8
A67: 6 | B67: 59.506728 | C67: 35000 | D67: 26487 | E67: 12100 | F67: 0 | G67: 0 | H67: 2449.61 | I67: 76036.61 | J67: 0 | K67: 76036.61
A68: 6 | B68: 19.2888 | C68: 13603.95 | D68: 0 | E68: 0 | F68: 545 | G68: 0 | H68: 435.37 | I68: 14584.32 | J68: 0 | K68: 14584.32
A69: 6 | B69: 342.912 | C69: 84949 | D69: 0 | E69: 0 | F69: 0 | G69: 0 | H69: 2548.47 | I69: 87497.47 | J69: 150 | K69: 87347.47
A70: 6 | B70: 201.44284 | C70: 45623.83 | D70: 0 | E70: 0 | F70: 0 | G70: 0 | H70: 1368.71 | I70: 46992.54 | J70: 147 | K70: 46845.54
A71: 6 | B71: 117.82242 | C71: 58503.6 | D71: 0 | E71: 8316.32 | F71: 100 | G71: 0 | H71: 2175.92 | I71: 69095.84 | J71: 156 | K71: 68939.84
A72: 6 | B72: 84.029448 | C72: 31330.61 | D72: 0 | E72: 0 | F72: 1243.55 | G72: 0 | H72: 1002.1 | I72: 33576.26 | J72: 40 | K72: 33536.26
A73: 6 | B73: 681.1142 | C73: 150128.96 | D73: 12734.67 | E73: 110524.78 | F73: 36053.27 | G73: 5451.01 | H73: 11825.84 | I73: 326718.53 | J73: 2547.75 | K73: 324170.78
A74: 6 | B74: 347.196496 | C74: 61219.14 | D74: 25718.73 | E74: 0 | F74: 1316.93 | G74: 0 | H74: 2673.98 | I74: 90928.78 | J74: 0 | K74: 90928.78
A75: 6 | B75: 515.78787 | C75: 109704.1 | D75: 0 | E75: 0 | F75: 0 | G75: 0 | H75: 3291.12 | I75: 112995.22 | J75: 0 | K75: 112995.22
A76: 6 | B76: 213.025912 | C76: 72685.31 | D76: 0 | E76: 0 | F76: 1460 | G76: 0 | H76: 2253.56 | I76: 76398.87 | J76: 0 | K76: 76398.87
A77: 6 | B77: 528.14 | C77: 71706 | D77: 15216.62 | E77: 115707.27 | F77: 0 | G77: 3044.25 | H77: 7505.36 | I77: 213179.5 | J77: 0 | K77: 213179.5
A78: 6 | B78: 37.12201 | C78: 24381.09 | D78: 0 | E78: 0 | F78: 857.95 | G78: 0 | H78: 774.33 | I78: 26013.37 | J78: 0 | K78: 26013.37
A79: 6 | B79: 967.31 | C79: 298809.77 | D79: 18567.46 | E79: 210024.75 | F79: 3915.4 | G79: 35496.11 | H79: 27969.33 | I79: 594782.82 | J79: 87202 | K79: 507580.82
A80: 6 | B80: 676.64 | C80: 126634 | D80: 0 | E80: 0 | F80: 11995 | G80: 0 | H80: 4398.77 | I80: 143027.77 | J80: 0 | K80: 143027.77
A81: 6 | B81: 154.68 | C81: 15785.15 | D81: 0 | E81: 47741.71 | F81: 291.04 | G81: 388.09 | H81: 2479.34 | I81: 66685.33 | J81: 0 | K81: 66685.33
A82: 6 | B82: 125.42185 | C82: 66690 | D82: 0 | E82: 0 | F82: 6348.12 | G82: 0 | H82: 2318.11 | I82: 75356.23 | J82: 0 | K82: 75356.23
A83: 6 | B83: 17.93144 | C83: 13112.5 | D83: 0 | E83: 1695.91 | F83: 0 | G83: 0 | H83: 444.25 | I83: 15252.66 | J83: 0 | K83: 15252.66
A84: 6 | B84: 274.82968 | C84: 32461.44 | D84: 0 | E84: 51461.73 | F84: 0 | G84: 0 | H84: 3370.43 | I84: 87293.6 | J84: 83.2 | K84: 87210.4
A85: 6 | B85: 55.07131 | C85: 33993 | D85: 4554.01 | E85: 0 | F85: 1839.16 | G85: 0 | H85: 1248.37 | I85: 41634.54 | J85: 0 | K85: 41634.54
A86: 6 | B86: 328.54363 | C86: 88197.58 | D86: 0 | E86: 0 | F86: 485 | G86: 0 | H86: 2670.18 | I86: 91352.76 | J86: 0 | K86: 91352.76
A87: 6 | B87: 77.881376 | C87: 30390.67 | D87: 3926.86 | E87: 5907.63 | F87: 0 | G87: 505.93 | H87: 1868.07 | I87: 42599.16 | J87: 0 | K87: 42599.16
A88: 6 | B88: 12.65268 | C88: 9722.66 | D88: 0 | E88: 10615 | F88: 2843.75 | G88: 0 | H88: 1159.07 | I88: 24340.48 | J88: 0 | K88: 24340.48
A89: 6 | B89: 134.935832 | C89: 78152.35 | D89: 0 | E89: 0 | F89: 2985.31 | G89: 0 | H89: 2493.84 | I89: 83631.5 | J89: 0 | K89: 83631.5
A90: 6 | B90: 39.079824 | C90: 48070.2 | D90: 1084.8 | E90: 1084.8 | F90: 8476.72 | G90: 0 | H90: 1931.03 | I90: 60647.55 | J90: 27720 | K90: 32927.55
A91: 6 | B91: 107.186896 | C91: 109548.75 | D91: 0 | E91: 5814.75 | F91: 3011.25 | G91: 2323.73 | H91: 3953.62 | I91: 124652.1 | J91: 212 | K91: 124440.1
A92: 6 | B92: 26.279312 | C92: 12374 | D92: 0 | E92: 0 | F92: 1005 | G92: 0 | H92: 421.47 | I92: 13800.47 | J92: 0 | K92: 13800.47
A93: 6 | B93: 3077.401352 | C93: 653698.7 | D93: 287543.05 | E93: 350534.83 | F93: 19535.72 | G93: 19872.55 | H93: 59967.96 | I93: 1391152.81 | J93: 150 | K93: 1391002.81
A94: 6 | B94: 107.4279 | C94: 29707.53 | D94: 0 | E94: 0 | F94: 55.1 | G94: 0 | H94: 893.98 | I94: 30656.61 | J94: 0 | K94: 30656.61
A95: 6 | B95: 626.81 | C95: 87466.93 | D95: 113379.61 | E95: 47425.43 | F95: 22707.05 | G95: 0 | H95: 13434.39 | I95: 284413.41 | J95: 28718.98 | K95: 255694.43
A96: 6 | B96: 50.95856 | C96: 14319.41 | D96: 0 | E96: 0 | F96: 0 | G96: 0 | H96: 429.58 | I96: 14748.99 | J96: 0 | K96: 14748.99
B97: 10226.45037 | C97: 249.1599058 | D97: 63.3684071 | E97: 95.72773298 | F97: 12.59536744 | G97: 6.610426647 | H97: 17.48529779 | I97: 444.9471378 | J97: 16.77648097 | K97: 428.1706568
A98: 7 | B98: 627.251176 | C98: 218324.11 | D98: 70135.64 | E98: 0 | F98: 9059.84 | G98: 570.9 | H98: 9585.96 | I98: 307676.45 | J98: 3071.96 | K98: 304604.49
A99: 7 | B99: 28.46884 | C99: 13911.54 | D99: 0 | E99: 9567.25 | F99: 0 | G99: 764.75 | H99: 1212.18 | I99: 25455.72 | J99: 0 | K99: 25455.72
A100: 7 | B100: 271.12 | C100: 44215.55 | D100: 0 | E100: 0 | F100: 0 | G100: 0 | H100: 1326.47 | I100: 45542.02 | J100: 0 | K100: 45542.02
A101: 7 | B101: 251.44484 | C101: 114785.28 | D101: 0 | E101: 17864.61 | F101: 5610 | G101: 347.45 | H101: 4634.66 | I101: 143242 | J101: 0 | K101: 143242
A102: 7 | B102: 189.90538 | C102: 15804.05 | D102: 0 | E102: 43448.28 | F102: 425 | G102: 0 | H102: 2667.79 | I102: 62345.12 | J102: 0 | K102: 62345.12
A103: 7 | B103: 386.73 | C103: 97425.31 | D103: 0 | E103: 79367.22 | F103: 1689.22 | G103: 0 | H103: 6975.58 | I103: 185457.33 | J103: 7073.87 | K103: 178383.46
A104: 7 | B104: 412.99 | C104: 159668.6 | D104: 24099.75 | E104: 0 | F104: 682.93 | G104: 0 | H104: 5547.2 | I104: 189998.48 | J104: 26368.87 | K104: 163629.61
A105: 7 | B105: 435.44 | C105: 197439.55 | D105: 37813.52 | E105: 0 | F105: 457.14 | G105: 0 | H105: 7094.65 | I105: 242804.86 | J105: 57884.1 | K105: 184920.76
A106: 7 | B106: 266.3819 | C106: 44864.5 | D106: 244.2 | E106: 38694.27 | F106: 450 | G106: 1788.35 | H106: 4297.18 | I106: 90338.5 | J106: 0 | K106: 90338.5
A107: 7 | B107: 1918.72 | C107: 776075.72 | D107: 0 | E107: 22365.25 | F107: 14885.71 | G107: 45.91 | H107: 24797.86 | I107: 838170.45 | J107: 3446.77 | K107: 834723.68
A108: 7 | B108: 523.92 | C108: 308168.21 | D108: 29043.11 | E108: 0 | F108: 18963.56 | G108: 0 | H108: 11683.78 | I108: 367858.66 | J108: 57553.18 | K108: 310305.48
A109: 7 | B109: 339.604888 | C109: 103089.17 | D109: 0 | E109: 2030.18 | F109: 7487.01 | G109: 0 | H109: 3632.55 | I109: 116238.91 | J109: 0 | K109: 116238.91
A110: 7 | B110: 23.1287 | C110: 41932.16 | D110: 0 | E110: 53210.98 | F110: 10953.26 | G110: 528.82 | H110: 4819.19 | I110: 111444.41 | J110: 0 | K110: 111444.41
A111: 7 | B111: 15.52236 | C111: 40089.94 | D111: 0 | E111: 3368.91 | F111: 189.09 | G111: 182.43 | H111: 2191.52 | I111: 46021.89 | J111: 0 | K111: 46021.89
A112: 7 | B112: 91.13958 | C112: 68857.86 | D112: 0 | E112: 49693.02 | F112: 2289.94 | G112: 50.31 | H112: 6044.56 | I112: 126935.69 | J112: 0 | K112: 126935.69
A113: 7 | B113: 1496.97162 | C113: 338691.69 | D113: 0 | E113: 0 | F113: 5639.95 | G113: 0 | H113: 10939.74 | I113: 355271.38 | J113: 7251.06 | K113: 348020.32
A114: 7 | B114: 601.137088 | C114: 113349.65 | D114: 0 | E114: 0 | F114: 23562.5 | G114: 82.38 | H114: 4711.28 | I114: 141705.81 | J114: 509.76 | K114: 141196.05
A115: 7 | B115: 526.71 | C115: 178029.05 | D115: 45557.86 | E115: 450 | F115: 2652 | G115: 0 | H115: 6884.41 | I115: 233573.32 | J115: 70006.35 | K115: 163566.97
A116: 7 | B116: 275.21 | C116: 71764.08 | D116: 6790.64 | E116: 0 | F116: 3089.55 | G116: 0 | H116: 2511.12 | I116: 84155.39 | J116: 34710.13 | K116: 49445.26
A117: 7 | B117: 229.93 | C117: 65005.42 | D117: 0 | E117: 0 | F117: 0 | G117: 0 | H117: 1950.16 | I117: 66955.58 | J117: 0 | K117: 66955.58
A118: 7 | B118: 221.06215 | C118: 83977.39 | D118: 0 | E118: 0 | F118: 169.31 | G118: 126.19 | H118: 2544.93 | I118: 86817.82 | J118: 38 | K118: 86779.82
A119: 7 | B119: 283.541776 | C119: 161465.62 | D119: 0 | E119: 0 | F119: 1450 | G119: 0 | H119: 4916.47 | I119: 167832.09 | J119: 0 | K119: 167832.09
A120: 7 | B120: 317.91693 | C120: 57044.64 | D120: 50355.49 | E120: 96376.32 | F120: 1340.68 | G120: 3418.54 | H120: 8278.78 | I120: 216814.45 | J120: 7150.54 | K120: 209663.91
A121: 7 | B121: 120.56393 | C121: 8280 | D121: 0 | E121: 41377.6 | F121: 4836.7 | G121: 0 | H121: 2559.12 | I121: 57053.42 | J121: 2093.8 | K121: 54959.62
A122: 7 | B122: 567.579224 | C122: 209700 | D122: 0 | E122: 0 | F122: 1142 | G122: 0 | H122: 6348.1 | I122: 217190.1 | J122: 0 | K122: 217190.1
A123: 7 | B123: 953.65256 | C123: 104640.35 | D123: 0 | E123: 48712.35 | F123: 150 | G123: 0 | H123: 5582.33 | I123: 159085.03 | J123: 1610 | K123: 157475.03
A124: 7 | B124: 640.912592 | C124: 245982 | D124: 0 | E124: 34796.07 | F124: 11542.65 | G124: 238.07 | H124: 9764.7 | I124: 302323.49 | J124: 580 | K124: 301743.49
A125: 7 | B125: 2902.13 | C125: 1371837.25 | D125: 169588.57 | E125: 359362.12 | F125: 14242.49 | G125: 40371.51 | H125: 66213.8 | I125: 2021615.74 | J125: 299360.57 | K125: 1722255.17
A126: 7 | B126: 260 | C126: 81303.75 | D126: 0 | E126: 148356.1 | F126: 0 | G126: 0 | H126: 9856.92 | I126: 239516.77 | J126: 0 | K126: 239516.77
A127: 7 | B127: 1277.4424 | C127: 382336.95 | D127: 87734.46 | E127: 0 | F127: 7598.66 | G127: 9188.3 | H127: 22113.22 | I127: 508971.59 | J127: 0 | K127: 508971.59
A128: 7 | B128: 358.11 | C128: 21437.91 | D128: 139182.8 | E128: 167069.66 | F128: 1503.03 | G128: 0 | H128: 13253.19 | I128: 342446.59 | J128: 0 | K128: 342446.59
A129: 7 | B129: 178.88576 | C129: 80453.52 | D129: 0 | E129: 152.64 | F129: 5370.49 | G129: 69.54 | H129: 2700.23 | I129: 88746.42 | J129: 4000 | K129: 84746.42
A130: 7 | B130: 158.815048 | C130: 43976 | D130: 0 | E130: 27788.52 | F130: 387.63 | G130: 0 | H130: 2728.09 | I130: 74880.24 | J130: 30 | K130: 74850.24
A131: 7 | B131: 155.39 | C131: 13880.93 | D131: 0 | E131: 90232.09 | F131: 676.02 | G131: 1141.82 | H131: 5296.54 | I131: 111227.4 | J131: 234 | K131: 110993.4
A132: 7 | B132: 304.7 | C132: 26863.39 | D132: 15234 | E132: 149975.03 | F132: 2395 | G132: 495.72 | H132: 6682.49 | I132: 201645.63 | J132: 6879.49 | K132: 194766.14
A133: 7 | B133: 140.71894 | C133: 66631.09 | D133: 0 | E133: 0 | F133: 1531.46 | G133: 0 | H133: 2075.51 | I133: 70238.06 | J133: 0 | K133: 70238.06
A134: 7 | B134: 1042.97 | C134: 289445.69 | D134: 165005.14 | E134: 14082.52 | F134: 886.56 | G134: 122.41 | H134: 14282.12 | I134: 483824.44 | J134: 136707.76 | K134: 347116.68
A135: 7 | B135: 374.95 | C135: 42473.71 | D135: 19215.52 | E135: 102033.94 | F135: 936.02 | G135: 1152.54 | H135: 7906.28 | I135: 173718.01 | J135: 3356.74 | K135: 170361.27
A136: 7 | B136: 353.95 | C136: 107830.03 | D136: 35781.82 | E136: 0 | F136: 2855.92 | G136: 0 | H136: 4451.15 | I136: 150918.92 | J136: 27172.12 | K136: 123746.8
A137: 7 | B137: 574.199 | C137: 129830 | D137: 0 | E137: 0 | F137: 1311 | G137: 0 | H137: 3980.49 | I137: 135121.49 | J137: 0 | K137: 135121.49
A138: 7 | B138: 821.79218 | C138: 291834.65 | D138: 0 | E138: 0 | F138: 3038.2 | G138: 0 | H138: 8906.95 | I138: 303779.8 | J138: 210 | K138: 303569.8
A139: 7 | B139: 203.54 | C139: 17330 | D139: 0 | E139: 0 | F139: 106.77 | G139: 0 | H139: 525.24 | I139: 17962.01 | J139: 65 | K139: 17897.01
A140: 7 | B140: 13.65272 | C140: 12122.15 | D140: 0 | E140: 0 | F140: 13.72 | G140: 0 | H140: 606.79 | I140: 12742.66 | J140: 170.02 | K140: 12572.64
A141: 7 | B141: 778.33 | C141: 285086.33 | D141: 66996.24 | E141: 3785.6 | F141: 5014.5 | G141: 0 | H141: 10926.77 | I141: 371809.44 | J141: 102730.9 | K141: 269078.54
A142: 7 | B142: 681.66 | C142: 132468.32 | D142: 0 | E142: 21797.68 | F142: 1699 | G142: 0 | H142: 5355.43 | I142: 161320.43 | J142: 0 | K142: 161320.43
A143: 7 | B143: 214.42 | C143: 85372.78 | D143: 18910.59 | E143: 0 | F143: 1118.5 | G143: 0 | H143: 3187.91 | I143: 108589.78 | J143: 29230.54 | K143: 79359.24
A144: 7 | B144: 289.41237 | C144: 51313.05 | D144: 4237.5 | E144: 45009.3 | F144: 658.13 | G144: 0 | H144: 3651.54 | I144: 104869.52 | J144: 85 | K144: 104784.52
A145: 7 | B145: 532.99 | C145: 238390.2 | D145: 127280.66 | E145: 0 | F145: 1402.89 | G145: 4629.93 | H145: 18585.18 | I145: 390288.86 | J145: 55242.49 | K145: 335046.37
A146: 7 | B146: 1015.7 | C146: 179753.88 | D146: 315562.89 | E146: 0 | F146: 6801.62 | G146: 18691.78 | H146: 22930.73 | I146: 543740.9 | J146: 160381.61 | K146: 383359.29
A147: 7 | B147: 1102.4978 | C147: 233461.42 | D147: 142027.03 | E147: 65869.64 | F147: 2208.77 | G147: 0 | H147: 14540.97 | I147: 458107.83 | J147: 143280.44 | K147: 314827.39
A148: 7 | B148: 469.10572 | C148: 84116.14 | D148: 0 | E148: 13198.6 | F148: 1594.12 | G148: 0 | H148: 2999.15 | I148: 101908.01 | J148: 5257.81 | K148: 96650.2
A149: 7 | B149: 400.285576 | C149: 101340.7 | D149: 29095.05 | E149: 0 | F149: 7000 | G149: 3904.69 | H149: 6485.12 | I149: 147825.56 | J149: 0 | K149: 147825.56
A150: 7 | B150: 3279.57 | C150: 882055.24 | D150: 862355.07 | E150: 32525.7 | F150: 23200.61 | G150: 31615.2 | H150: 74368.17 | I150: 1906119.99 | J150: 485579.34 | K150: 1420540.65
A151: 7 | B151: 280.1341 | C151: 220848.73 | D151: 0 | E151: 0 | F151: 697.56 | G151: 0 | H151: 6711.15 | I151: 228257.44 | J151: 0 | K151: 228257.44
A152: 7 | B152: 721.03499 | C152: 228326.47 | D152: 0 | E152: 140279.55 | F152: 7967.46 | G152: 5686.04 | H152: 19112.98 | I152: 401372.5 | J152: 0 | K152: 401372.5
A153: 7 | B153: 1067.755752 | C153: 285417.97 | D153: 0 | E153: 0 | F153: 13545.24 | G153: 0 | H153: 9479.53 | I153: 308442.74 | J153: 847 | K153: 307595.74
A154: 7 | B154: 514.446664 | C154: 266734.97 | D154: 0 | E154: 0 | F154: 5163.66 | G154: 0 | H154: 8620.9 | I154: 280519.53 | J154: 392 | K154: 280127.53
A155: 7 | B155: 903 | C155: 512766.76 | D155: 147868.13 | E155: 40002.84 | F155: 3739 | G155: 0 | H155: 21385.59 | I155: 725762.32 | J155: 157104.89 | K155: 568657.43
A156: 7 | B156: 672.47365 | C156: 232193 | D156: 18826 | E156: 0 | F156: 14028.48 | G156: 0 | H156: 8231.99 | I156: 273279.47 | J156: 0 | K156: 273279.47
A157: 7 | B157: 622.72056 | C157: 143872.54 | D157: 17842.66 | E157: 4265 | F157: 7101.64 | G157: 6058.59 | H157: 8600.17 | I157: 187740.6 | J157: 147.38 | K157: 187593.22
A158: 7 | B158: 591.693232 | C158: 195211.68 | D158: 8729.79 | E158: 55017.06 | F158: 1665.22 | G158: 23210.33 | H158: 14017.11 | I158: 297851.19 | J158: 685.08 | K158: 297166.11
A159: 7 | B159: 362.979736 | C159: 229146.78 | D159: 0 | E159: 0 | F159: 726.92 | G159: 0 | H159: 6910.75 | I159: 236784.45 | J159: 21856.79 | K159: 214927.66
A160: 7 | B160: 192.16467 | C160: 72825.41 | D160: 0 | E160: 0 | F160: 0 | G160: 0 | H160: 2184.76 | I160: 75010.17 | J160: 0 | K160: 75010.17
A161: 7 | B161: 704.91 | C161: 180257.52 | D161: 41890.35 | E161: 0 | F161: 1464.93 | G161: 0 | H161: 6737.68 | I161: 230350.48 | J161: 107456.61 | K161: 122893.87
A162: 7 | B162: 419.62548 | C162: 14492.52 | D162: 0 | E162: 297756.82 | F162: 1851.04 | G162: 6175.53 | H162: 14834.46 | I162: 335110.37 | J162: 8781.38 | K162: 326328.99
A163: 7 | B163: 1039.06801 | C163: 319047.52 | D163: 32431.7 | E163: 7646.24 | F163: 12395.75 | G163: 0 | H163: 11546.48 | I163: 383067.69 | J163: 30633.47 | K163: 352434.22
A164: 7 | B164: 791.49 | C164: 279694.23 | D164: 0 | E164: 3479.04 | F164: 10102.84 | G164: 564.01 | H164: 9175.65 | I164: 303015.77 | J164: 12258.87 | K164: 290756.9
A165: 7 | B165: 833.42464 | C165: 254465.33 | D165: 0 | E165: 3695.45 | F165: 585 | G165: 0 | H165: 7774.07 | I165: 266519.85 | J165: 0 | K165: 266519.85
A166: 7 | B166: 177.99 | C166: 45913.81 | D166: 84909.76 | E166: 0 | F166: 291.17 | G166: 0 | H166: 3939.27 | I166: 135054.01 | J166: 3246.06 | K166: 131807.95
A167: 7 | B167: 771.796088 | C167: 240887.17 | D167: 0 | E167: 8735 | F167: 861.4 | G167: 0 | H167: 7706.44 | I167: 258190.01 | J167: 14683.55 | K167: 243506.46
A168: 7 | B168: 413.5483 | C168: 149609 | D168: 0 | E168: 0 | F168: 0 | G168: 0 | H168: 4488.27 | I168: 154097.27 | J168: 1731 | K168: 152366.27
B169: 40982.42892 | C169: 317.3857254 | D169: 68.68177446 | E169: 57.18154125 | F169: 7.42895109 | G169: 3.933930815 | H169: 16.33796526 | I169: 470.9498882 | J169: 51.22064151 | K169: 419.7292467
A170: 8 | B170: 48.63278 | C170: 0 | D170: 0 | E170: 16489.5 | F170: 0 | G170: 0 | H170: 581.53 | I170: 17071.03 | J170: 0 | K170: 17071.03
A171: 8 | B171: 47.82015 | C171: 0 | D171: 0 | E171: 24021.52 | F171: 100 | G171: 0 | H171: 1206.08 | I171: 25327.6 | J171: 0 | K171: 25327.6
A172: 8 | B172: 19.43556 | C172: 0 | D172: 0 | E172: 17326.01 | F172: 445.5 | G172: 0 | H172: 888.58 | I172: 18660.09 | J172: 0 | K172: 18660.09
A173: 8 | B173: 116.60794 | C173: 0 | D173: 21789 | E173: 103174 | F173: 0 | G173: 0 | H173: 5812.37 | I173: 130775.37 | J173: 0 | K173: 130775.37
A174: 8 | B174: 51.758592 | C174: 0 | D174: 1160.64 | E174: 7065 | F174: 1725 | G174: 0 | H174: 333.02 | I174: 10283.66 | J174: 0 | K174: 10283.66
A175: 8 | B175: 1742.34 | C175: 0 | D175: 359411.39 | E175: 317640.21 | F175: 1059 | G175: 35636.94 | H175: 35687.38 | I175: 749434.92 | J175: 176855.9 | K175: 572579.02
A176: 8 | B176: 16.58301 | C176: 0 | D176: 0 | E176: 4884.48 | F176: 1175 | G176: 0 | H176: 205.28 | I176: 6264.76 | J176: 0 | K176: 6264.76
A177: 8 | B177: 45.0072 | C177: 0 | D177: 0 | E177: 11722.8 | F177: 0 | G177: 0 | H177: 351.68 | I177: 12074.48 | J177: 0 | K177: 12074.48
A178: 8 | B178: 180.155032 | C178: 0 | D178: 22008.4 | E178: 48554.08 | F178: 0 | G178: 0 | H178: 2429.18 | I178: 72991.66 | J178: 0 | K178: 72991.66
A179: 8 | B179: 16.05614 | C179: 0 | D179: 0 | E179: 10165.19 | F179: 1185.37 | G179: 0 | H179: 567.53 | I179: 11918.09 | J179: 0 | K179: 11918.09
A180: 8 | B180: 51.758592 | C180: 0 | D180: 1160.64 | E180: 7065 | F180: 281.1 | G180: 0 | H180: 260.82 | I180: 8767.56 | J180: 0 | K180: 8767.56
A181: 8 | B181: 7.92984 | C181: 0 | D181: 0 | E181: 11976.34 | F181: 57.11 | G181: 198.62 | H181: 400.4 | I181: 12632.47 | J181: 0 | K181: 12632.47
A182: 8 | B182: 26.070608 | C182: 0 | D182: 728.42 | E182: 6450.64 | F182: 326.7 | G182: 0 | H182: 231.71 | I182: 7737.47 | J182: 0 | K182: 7737.47
A183: 8 | B183: 137.09336 | C183: 0 | D183: 0 | E183: 34874.67 | F183: 505.81 | G183: 0 | H183: 1071.53 | I183: 36452.01 | J183: 0 | K183: 36452.01
A184: 8 | B184: 56.22328 | C184: 0 | D184: 0 | E184: 7565.16 | F184: 0 | G184: 0 | H184: 378.26 | I184: 7943.42 | J184: 0 | K184: 7943.42
A185: 8 | B185: 113.89322 | C185: 1925.32 | D185: 0 | E185: 95081.1 | F185: 0 | G185: 529.88 | H185: 3692.9 | I185: 101229.2 | J185: 0 | K185: 101229.2
A186: 8 | B186: 17.374608 | C186: 0 | D186: 485.61 | E186: 4500.53 | F186: 151.2 | G186: 0 | H186: 161.14 | I186: 5298.48 | J186: 0 | K186: 5298.48
A187: 8 | B187: 41.366872 | C187: 0 | D187: 0 | E187: 63012.1 | F187: 50 | G187: 0 | H187: 2097.53 | I187: 65159.63 | J187: 506.37 | K187: 64653.26
A188: 8 | B188: 71.06494 | C188: 0 | D188: 0 | E188: 18048.63 | F188: 560 | G188: 0 | H188: 755.51 | I188: 19364.14 | J188: 0 | K188: 19364.14
A189: 8 | B189: 103.54 | C189: 0 | D189: 8283.84 | E189: 24972.31 | F189: 943.2 | G189: 0 | H189: 1300.48 | I189: 35499.83 | J189: 4323.9 | K189: 31175.93
A190: 8 | B190: 182.29 | C190: 0 | D190: 0 | E190: 140466.66 | F190: 0 | G190: 7451.1 | H190: 6559.5 | I190: 154477.26 | J190: 0 | K190: 154477.26
A191: 8 | B191: 88.6 | C191: 0 | D191: 0 | E191: 76309.28 | F191: 1828.89 | G191: 3544.54 | H191: 4084.14 | I191: 85766.85 | J191: 15 | K191: 85751.85
A192: 8 | B192: 53.45 | C192: 0 | D192: 0 | E192: 57527.25 | F192: 0 | G192: 438.45 | H192: 2709.12 | I192: 60674.82 | J192: 0 | K192: 60674.82
A193: 8 | B193: 57.0627 | C193: 0 | D193: 0 | E193: 20740.19 | F193: 200 | G193: 0 | H193: 1047.01 | I193: 21987.2 | J193: 0 | K193: 21987.2
A194: 8 | B194: 19.01197 | C194: 0 | D194: 0 | E194: 9284.44 | F194: 433.33 | G194: 0 | H194: 485.89 | I194: 10203.66 | J194: 0 | K194: 10203.66
A195: 8 | B195: 145.08571 | C195: 0 | D195: 0 | E195: 47994.35 | F195: 1565.83 | G195: 66.39 | H195: 2481.33 | I195: 52107.9 | J195: 0 | K195: 52107.9
A196: 8 | B196: 154.54258 | C196: 0 | D196: 0 | E196: 116987.45 | F196: 340 | G196: 3140.64 | H196: 6023.4 | I196: 126491.49 | J196: 0 | K196: 126491.49
A197: 8 | B197: 29.47944 | C197: 0 | D197: 0 | E197: 12546.99 | F197: 0 | G197: 0 | H197: 376.41 | I197: 12923.4 | J197: 0 | K197: 12923.4
A198: 8 | B198: 37.05057 | C198: 0 | D198: 0 | E198: 41580 | F198: 1200 | G198: 0 | H198: 1307.4 | I198: 44087.4 | J198: 0 | K198: 44087.4
A199: 8 | B199: 442.69582 | C199: 67470.38 | D199: 0 | E199: 191774.28 | F199: 2217.84 | G199: 6382.72 | H199: 9993.55 | I199: 277838.77 | J199: 7.72 | K199: 277831.05
A200: 8 | B200: 21.63739 | C200: 9753.8 | D200: 0 | E200: 10061.12 | F200: 68.54 | G200: 483.33 | H200: 886.34 | I200: 21253.13 | J200: 0 | K200: 21253.13
A201: 8 | B201: 90.994944 | C201: 0 | D201: 0 | E201: 49081.21 | F201: 0 | G201: 0 | H201: 2454.06 | I201: 51535.27 | J201: 0 | K201: 51535.27
A202: 8 | B202: 11.28752 | C202: 0 | D202: 0 | E202: 43701.61 | F202: 536.53 | G202: 0 | H202: 2211.91 | I202: 46450.05 | J202: 0 | K202: 46450.05
... 47 more rows

Sheet Variable Description (hidden)
A1: Legend:
A2: User Input: This field requires the user to manualy enter data
A3: Fixed Parameter: This field is hidden from the user and is predefined by the model
A4: Given: These are options presented by the model and cannot be changed by the user, i.e: Material Types, Municipal Bands
A5: Variable Parameter: Contingent on the value of another variable
A6: User Defined: This field is pre populated by the model, but can be changed by the user
A8: PRE MODEL INPUTS | B8: VALUE
A9: Select Which Municipal Group You Would Like to Model (Large Urban, Medium Urban, Rural Collection, Rural Depot, ALL) | B9: Given
A11: COLLECTION VARIABLES
A12: Material Variables | B12: VALUE
A13: Material Tonnage | B13: Input
A14: Material Density | B14: Fixed Parameters
A15: Material Types | B15: Given
A16: Truck Variables (function of truck type) | B16: VALUE
A17: Capital Cost | B17: Fixed Parameter/User Defined
A18: Depreciation | B18: Fixed Parameter/User Defined
A19: Maintenance | B19: Fixed Parameter/User Defined
A20: Fuel Use (Litres) | B20: Fixed Parameter/User Defined
A21: Fuel Cost $/L | B21: Fixed Parameter/User Defined
A22: Amortization period | B22: Fixed Parameter/User Defined
A23: Household Variables | B23: VALUE
A24: # of Single Family Households Serviced | B24: User Input (or Given if the all situation is modeled)
A25: # of Multi Residential Households Serviced | B25: User input
A26: Distance between stops | B26: Fixed Parameter/User Defined
A27: Population Density | B27: Fixed Parameter/User Defined
A28: Collection Route Parameters | B28: VALUE
A29: Travel Time | B29: Fixed Parameter/User Defined
A30: Stop Time | B30: Fixed Parameter/User Defined
A31: Collection Frequency | B31: Fixed Parameter/User Defined
A32: Truck types* each truck type will have various fuel characteristics, capital costs etc) | B32: VALUE
A33: Large | B33: Fixed Parameter
A34: Medium | B34: Fixed Parameter
A35: Small | B35: Fixed Parameter
A36: Crew | B36: VALUE
A37: Labor costs (drivers, supervisors, dispatchers) | B37: Fixed Parameter/User Defined
A38: Available collection time per crew | B38: Fixed Parameter/User Defined
A39: (Average work day, breaks, equipment checks etc) | B39: Fixed Parameter/User Defined
A40: Pick up and Drop off distance | B40: Fixed Parameter/User Defined
A42: PROCESSING VARIABLES (MRF)
A43: MRF Type | B43: VALUE
A44: Single vs Dual | B44: Given (User can select between two options)
A45: MRF Size | B45: VALUE
A46: Large, Medium, Small (Size is defined by tonnes throughput) | B46: User Defined
A47: MRF Equipment (will be conditional on type of MRF selected by user) | B47: VALUE
A48: Material Feeder Hopper Costs*, *Conveyer Cost, *Storage Bin Costs, *Chute Cost, Screens*, *Magnet Cost, *Eddy Current Separator Cost, *Optical Sorter Cost, *Rolling Stock Cost, *Baler Cost, *Bag Opener Cost | B48: Fixed Parameter
A49: Equipment Installation Cost | B49: Fixed Parameter
A50: Utilities & Maintenance | B50: VALUE
A51: *Power, *Fuel, *Oil, *Water etc (Cost of maintenance is assumed to be proportional to the weight of material processed in the MRF | B51: Variable Parameter (will be expressed on a per $/tonne basis)
A52: Construction (Will be conditional on type of MRF selected by user) | B52: VALUE
A53: Cost of structure | B53: Fixed Parameter
A54: Land Acquisition Cost | B54: Fixed Parameter
A55: Engineering (Consulting and Technical Services) | B55: Fixed Parameter
A56: Labor Costs (pickers, supervisors, admin staff)
A57: *picking rate, *length of work day, *number of shifts, *number of staff, *overhead costs | B57: Fixed Parameter/User Define
A58: Manual vs Mechanical Sort | B58: Fixed Parameter/User Define
A60: DEPOT/TRANSFER STATIONS
A61: Transfer Station Type | B61: VALUE
A62: Mixed Waste, Pre Sorted, Commingled Recyclables | B62: Given (User can select between the options)
A63: Utilities & Maintenance | B63: VALUE
A64: *Power, *Fuel, *Oil, *Water etc | B64: Fixed Parameter (Function of Transfer Station Type)
A65: Labor | B65: VALUE
A66: *Driver Costs, *Site Staff, *Supervisors | B66: Fixed Parameter/User Defined
A67: Tipping | B67: VALUE
A68: Tipping Time | B68: Fixed Parameter
A69: Tipping Floor Space | B69: Variable Parameter (Function of Transfer Station Type)
A72: PROMOTION AND EDUCATION | B72: VALUE
A73: $ per household reported by municipalities | B73: User Input/Pre Defined (Model will calculate $1 per household as per BB Best practice provision)
A76: ADMINISTRATION COSTS | B76: VALUE
A77: 1 Administration is calculated as follows: • 3% of reported contracted costs • 5% of reported municipal costs | B77: User Input/Pre Defined (Model will use WDO calculations for Administration)
A82: INTEREST ON MUNICIPAL CAPITAL | B82: VALUE
A83: *Interest paid by muncipalities for capital purchase loans | B83: User Input

Sheet Common Costs
A1: Category | B1: Material | C1: Common Costs (less credit) | D1: Share of Common Costs | E1: REDISTRIBUTION
B3: Weight for Factor
A4: PRINTED PAPER | G4: Common Costs (less credit)
A5: Printed Paper | B5: Newsprint - CNA/OCNA | C5: =IF(Inputs!C7=0,323605,0) -> 0 | D5: =Inputs!C7/Inputs!$C$36 -> 0.2026249856 | E5: =D5*$C$37 -> 0 | G5: 323605.2816
B6: Newsprint - Non-CNA/OCNA | C6: =IF(Inputs!C8=0,221075,0) -> 0 | D6: =Inputs!C8/Inputs!$C$36 -> 0.1340171329 | E6: =D6*$C$37 -> 0 | G6: 221075.4465
B7: Magazines and Catalogues | C7: =IF(Inputs!C9=0,109737,0) -> 0 | D7: =Inputs!C9/Inputs!$C$36 -> 0.06325257276 | E7: 0 | G7: 109736.8364
B8: Telephone Books | C8: =IF(Inputs!C10=0,11583,0) -> 0 | D8: =Inputs!C10/Inputs!$C$36 -> 0.008876885278 | E8: 0 | G8: 11582.94203
B9: Other Printed Paper | C9: =IF(Inputs!C11=0,276999,0) -> 0 | D9: =Inputs!C11/Inputs!$C$36 -> 0.07117564304 | E9: 0 | G9: 276998.9285
A10: Printed Paper
A12: PACKAGING
A13: Paper Based Packaging | B13: Corrugated Cardboard | C13: =IF(Inputs!C13=0,575385,0) -> 0 | D13: =Inputs!C13/Inputs!$C$36 -> 0.1690047644 | E13: =D13*$C$37 -> 0 | G13: 575384.7813
B14: Boxboard | C14: =IF(Inputs!C14=0,513057,0) -> 0 | D14: =Inputs!C14/Inputs!$C$36 -> 0.08677720948 | E14: 0 | G14: 513057.4345
B15: Gable Top Cartons | C15: =IF(Inputs!C15=0,65787,0) -> 0 | D15: =Inputs!C15/Inputs!$C$36 -> 0.00929617085 | E15: 0 | G15: 65787.04393
B16: Paper Laminates | C16: =IF(Inputs!C16=0,181011,0) -> 0 | D16: =Inputs!C16/Inputs!$C$36 -> 0.003550413341 | E16: 0 | G16: 181011.1842
B17: Aseptic Containers | C17: =IF(Inputs!C17=0,26870,0) -> 0 | D17: =Inputs!C17/Inputs!$C$36 -> 0.001465494505 | E17: 0 | G17: 26869.85101
A18: Paper Based Packaging
A19: Plastic Packaging | B19: PET Bottles | C19: =IF(Inputs!C19=0,417315,0) -> 0 | D19: =Inputs!C19/Inputs!$C$36 -> 0.04132416665 | E19: 0 | G19: 417314.5818
B20: HDPE Bottles | C20: =IF(Inputs!C20=0,198312,0) -> 0 | D20: =Inputs!C20/Inputs!$C$36 -> 0.01748891816 | E20: 0 | G20: 198311.7111
B21: Plastic Film | C21: =IF(Inputs!C21=0,348581,0) -> 0 | D21: =Inputs!C21/Inputs!$C$36 -> 0.007132174578 | E21: 0 | G21: 348580.9307
B22: Plastic Laminates | C22: =IF(Inputs!C22=0,213363,0) -> 0 | D22: =Inputs!C22/Inputs!$C$36 -> 0.001080109265 | E22: 0 | G22: 213362.7595
B23: Polystyrene | C23: =IF(Inputs!C23=0,241926,0) -> 0 | D23: =Inputs!C23/Inputs!$C$36 -> 0.001608925537 | E23: 0 | G23: 241925.6515
B24: Other Plastics | C24: =IF(Inputs!C24=0,506419,0) -> 0 | D24: =Inputs!C24/Inputs!$C$36 -> 0.03210149977 | E24: 0 | G24: 506418.5556
A25: Plastics Packaging
A26: Steel Packaging | B26: Steel Food & Beverage Cans | C26: =IF(Inputs!C26=0,219986,0) -> 0 | D26: =Inputs!C26/Inputs!$C$36 -> 0.03399730654 | E26: 0 | G26: 219985.6797
B27: Steel Aerosols | C27: =IF(Inputs!C27=0,19814,0) -> 0 | D27: =Inputs!C27/Inputs!$C$36 -> 0.0007692403655 | E27: 0 | G27: 19813.50085
B28: Steel Paint Cans | C28: =IF(Inputs!C28=0,24640,0) -> 0 | D28: =Inputs!C28/Inputs!$C$36 -> 0.0003306392143 | E28: 0 | G28: 24639.81443
A29: Steel Packaging
A30: Aluminum Packaging | B30: Aluminum Food & Beverage Cans | C30: =IF(Inputs!C30=0,211965,0) -> 0 | D30: =Inputs!C30/Inputs!$C$36 -> 0.01202998399 | E30: 0 | G30: 211965.2076
B31: Other Aluminum Packaging | C31: =IF(Inputs!C31=0,42495,0) -> 0 | D31: =Inputs!C31/Inputs!$C$36 -> 0.0002502288729 | E31: 0 | G31: 42494.95745
A32: Aluminum Packaging
A33: Glass Packaging | B33: Clear Glass | C33: =IF(Inputs!C33=0,178833,0) -> 0 | D33: =Inputs!C33/Inputs!$C$36 -> 0.07920124766 | E33: 0 | G33: 178832.7374
B34: Coloured Glass | C34: =IF(Inputs!C34=0,60659,0) -> 0 | D34: =Inputs!C34/Inputs!$C$36 -> 0.02264428718 | E34: 0 | G34: 60659.18263
A35: Glass Packaging
B37: EXTRA COMMON COSTS (POST THRESHOLD) | C37: =SUM(C15:C24) -> 0 | D37: =SUM(D5:D34) -> 1 | E37: =SUM(E5:E34) -> 0
B38: COMMON COSTS | C38: 4989415

Sheet Disposal (hidden)
P1: Cities | Q1: Cost Per Tonne | U1: Yes
A2: http://garbage.speakupwinnipeg.com/2011/03/what-does-garbage-and-recycling-cost-us/ | U2: No | W2: Scenario 1
P3: Ottawa | Q3: =73+55.94 -> 128.94 | W3: Scenario 2
P4: Winnipeg | Q4: =75+15.13 -> 90.13
P5: London | Q5: =86+20.94 -> 106.94
P6: Sudbury | Q6: =187+67.09 -> 254.09
P7: Hamilton | Q7: 267.45

Sheet Scenario 1
A2: Material
B3: Generation (Sheet 1) | C3: Contribution to total generation | D3: Savings to Industry if not Recycled | E3: Savings to Municipalities if not Recycled | F3: Savings to Stewards who don't recycle (because the material has been removed from the system) | G3: Cost to stewards who don't recycle (from having to subsidize the costs of other recyclable packaging and municipalities)
B4: (tonnes) | C4: % | D4: $/tonne | F4: $ | G4: $
A5: Newsprint - CNA/OCNA | B5: 217374.8181 | C5: =B5/$B$34 -> 0.1529092801 | D5: =Inputs!F7*Inputs!$C$50 -> 58.45920704 | E5: =Sheet10!G1*(1-Inputs!$C$50) -> 86.64403491 | F5: =IF(Inputs!C7=0,Sheet10!B1*'Scenario 1'!D5,"") ->  | G5: =IF(F5="","",C5*Inputs!$C$47) -> 
A6: Newsprint - Non-CNA/OCNA | B6: 148405.3807 | C6: =B6/$B$34 -> 0.1043936925 | D6: =Inputs!F8*Inputs!$C$50 -> 58.45920704 | E6: =Sheet10!G2*(1-Inputs!$C$50) -> 86.64403491 | F6: =IF(Inputs!C8=0,Sheet10!B2*'Scenario 1'!D6,"") ->  | G6: =IF(F6="","",C6*Inputs!$C$47) -> 
A7: Magazines and Catalogues | B7: 78908.18384 | C7: 0.05550685994 | D7: =Inputs!F9*Inputs!$C$50 -> 58.45920704 | E7: =Sheet10!G3*(1-Inputs!$C$50) -> 86.64403491 | F7: =IF(Inputs!C9=0,Sheet10!B3*'Scenario 1'!D7,"") ->  | G7: =IF(F7="","",C7*Inputs!$C$47) -> 
A8: Telephone Books | B8: 8328.91624 | C8: 0.005858859813 | D8: =Inputs!F10*Inputs!$C$50 -> 62.85197496 | E8: =Sheet10!G4*(1-Inputs!$C$50) -> 105.443467 | F8: =IF(Inputs!C10=0,Sheet10!B4*'Scenario 1'!D8,"") ->  | G8: =IF(F8="","",C8*Inputs!$C$47) -> 
A9: Other Printed Paper | B9: 128244.9524 | C9: 0.09021212076 | D9: =Inputs!F11*Inputs!$C$50 -> 63.30201327 | E9: =Sheet10!G5*(1-Inputs!$C$50) -> 92.65568828 | F9: =IF(Inputs!C11=0,Sheet10!B5*'Scenario 1'!D9,"") ->  | G9: =IF(F9="","",C9*Inputs!$C$47) -> 
A11: Corrugated Cardboard | B11: 169360.6425 | C11: 0.1191343788 | D11: =Inputs!F13*Inputs!$C$50 -> 194.8194871 | E11: =Sheet10!G7*(1-Inputs!$C$50) -> 241.2580384 | F11: =IF(Inputs!C13=0,Sheet10!B7*'Scenario 1'!D11,"") ->  | G11: =IF(F11="","",C11*Inputs!$C$47) -> 
A12: Boxboard | B12: 163987.5138 | C12: 0.1153547264 | D12: =Inputs!F14*Inputs!$C$50 -> 113.5535052 | E12: =Sheet10!G8*(1-Inputs!$C$50) -> 143.8356804 | F12: =IF(Inputs!C14=0,Sheet10!B8*'Scenario 1'!D12,"") ->  | G12: =IF(F12="","",C12*Inputs!$C$47) -> 
A13: Gable Top Cartons | B13: 14248.79104 | C13: 0.01002311307 | D13: =Inputs!F15*Inputs!$C$50 -> 548.9577998 | E13: =Sheet10!G9*(1-Inputs!$C$50) -> 585.2999452 | F13: =IF(Inputs!C15=0,Sheet10!B9*'Scenario 1'!D13,"") ->  | G13: =IF(F13="","",C13*Inputs!$C$47) -> 
A14: Paper Laminates | B14: 39205.14414 | C14: 0.02757831113 | D14: =Inputs!F16*Inputs!$C$50 -> 540.0976382 | E14: =Sheet10!G10*(1-Inputs!$C$50) -> 480.2380338 | F14: =IF(Inputs!C16=0,Sheet10!B10*'Scenario 1'!D14,"") ->  | G14: =IF(F14="","",C14*Inputs!$C$47) -> 
A15: Aseptic Containers | B15: 5819.7309 | C15: 0.004093808427 | D15: =Inputs!F17*Inputs!$C$50 -> 501.6741624 | E15: =Sheet10!G11*(1-Inputs!$C$50) -> 480.2380338 | F15: =IF(Inputs!C17=0,Sheet10!B11*'Scenario 1'!D15,"") ->  | G15: =IF(F15="","",C15*Inputs!$C$47) -> 
A17: PET Bottles | B17: 56847.71114 | C17: 0.03998872851 | D17: =Inputs!F19*Inputs!$C$50 -> 491.1972353 | E17: =Sheet10!G13*(1-Inputs!$C$50) -> 640.2749039 | F17: =IF(Inputs!C19=0,Sheet10!B13*'Scenario 1'!D17,"") ->  | G17: =IF(F17="","",C17*Inputs!$C$47) -> 
A18: HDPE Bottles | B18: 27597.63419 | C18: 0.01941317036 | D18: =Inputs!F20*Inputs!$C$50 -> 383.160102 | E18: =Sheet10!G14*(1-Inputs!$C$50) -> 598.1849985 | F18: =IF(Inputs!C20=0,Sheet10!B14*'Scenario 1'!D18,"") ->  | G18: =IF(F18="","",C18*Inputs!$C$47) -> 
A19: Plastic Film | B19: 54382.76276 | C19: 0.03825479499 | D19: =Inputs!F21*Inputs!$C$50 -> 1240.976611 | E19: =Sheet10!G15*(1-Inputs!$C$50) -> 947.3687102 | F19: =IF(Inputs!C21=0,Sheet10!B15*'Scenario 1'!D19,"") ->  | G19: =IF(F19="","",C19*Inputs!$C$47) -> 
A20: Plastic Laminates | B20: 35391.33064 | C20: 0.02489553729 | D20: =Inputs!F22*Inputs!$C$50 -> 1233.88191 | E20: =Sheet10!G16*(1-Inputs!$C$50) -> 947.3687102 | F20: =IF(Inputs!C22=0,Sheet10!B16*'Scenario 1'!D20,"") ->  | G20: =IF(F20="","",C20*Inputs!$C$47) -> 
A21: Polystyrene | B21: 21391.0016 | C21: 0.01504720134 | D21: =Inputs!F23*Inputs!$C$50 -> 838.423716 | E21: =Sheet10!G17*(1-Inputs!$C$50) -> 1146.048637 | F21: =IF(Inputs!C23=0,Sheet10!B17*'Scenario 1'!D21,"") ->  | G21: =IF(F21="","",C21*Inputs!$C$47) -> 
A22: Other Plastics | B22: 70790.314 | C22: 0.04979645777 | D22: =Inputs!F24*Inputs!$C$50 -> 601.1432138 | E22: =Sheet10!G18*(1-Inputs!$C$50) -> 693.9187385 | F22: =IF(Inputs!C24=0,Sheet10!B18*'Scenario 1'!D22,"") ->  | G22: =IF(F22="","",C22*Inputs!$C$47) -> 
A24: Steel Food & Beverage Cans | B24: 45285.5356 | C24: 0.03185547759 | D24: =Inputs!F26*Inputs!$C$50 -> 55.13569795 | E24: =Sheet10!G20*(1-Inputs!$C$50) -> 176.0771035 | F24: =IF(Inputs!C26=0,Sheet10!B20*'Scenario 1'!D24,"") ->  | G24: =IF(F24="","",C24*Inputs!$C$47) -> 
A25: Steel Aerosols | B25: 4078.742759 | C25: 0.002869134633 | D25: =Inputs!F27*Inputs!$C$50 -> 55.13569795 | E25: =Sheet10!G21*(1-Inputs!$C$50) -> 176.0771035 | F25: =IF(Inputs!C27=0,Sheet10!B21*'Scenario 1'!D25,"") ->  | G25: =IF(F25="","",C25*Inputs!$C$47) -> 
A26: Steel Paint Cans | B26: 5072.271953 | C26: 0.00356801887 | D26: =Inputs!F28*Inputs!$C$50 -> 55.13569795 | E26: =Sheet10!G22*(1-Inputs!$C$50) -> 176.0771035 | F26: =IF(Inputs!C28=0,Sheet10!B22*'Scenario 1'!D26,"") ->  | G26: =IF(F26="","",C26*Inputs!$C$47) -> 
A28: Aluminum Food & Beverage Cans | B28: 22551.77291 | C28: 0.01586372971 | D28: =Inputs!F30*Inputs!$C$50 -> -129.2324401 | E28: =Sheet10!G24*(1-Inputs!$C$50) -> 557.1764599 | F28: =IF(Inputs!C30=0,Sheet10!B24*'Scenario 1'!D28,"") ->  | G28: =IF(F28="","",C28*Inputs!$C$47) -> 
A29: Other Aluminum Packaging | B29: 4521.1978 | C29: 0.003180373452 | D29: =Inputs!F31*Inputs!$C$50 -> -129.2324401 | E29: =Sheet10!G25*(1-Inputs!$C$50) -> 557.1764599 | F29: =IF(Inputs!C31=0,Sheet10!B25*'Scenario 1'!D29,"") ->  | G29: =IF(F29="","",C29*Inputs!$C$47) -> 
A31: Clear Glass | B31: 74521.6429 | C31: 0.05242120898 | D31: =Inputs!F33*Inputs!$C$50 -> 63.91957366 | E31: =Sheet10!G27*(1-Inputs!$C$50) -> 67.99594091 | F31: =IF(Inputs!C33=0,Sheet10!B27*'Scenario 1'!D31,"") ->  | G31: =IF(F31="","",C31*Inputs!$C$47) -> 
A32: Coloured Glass | B32: 25277.37378 | C32: 0.01778101558 | D32: =Inputs!F34*Inputs!$C$50 -> 60.04080617 | E32: =Sheet10!G28*(1-Inputs!$C$50) -> 62.71250762 | F32: =IF(Inputs!C34=0,Sheet10!B28*'Scenario 1'!D32,"") ->  | G32: =IF(F32="","",C32*Inputs!$C$47) -> 
A34: Total | B34: =SUM(B5:B32) -> 1421593.366 | C34: =SUM(C5:C32) -> 1 | F34: =SUM(F5:F32) -> 0 | G34: =SUM(G5:G32) -> 0
A37: OUTPUTS
A38: Gross System Cost | C38: =Inputs!F47-'Scenario 1'!G34 -> 353075299.9
A39: Net System Cost | C39: =C38-(Inputs!E36*Inputs!C36) -> 253987146.3
A41: Savings relative to default system (Gross) | C41: =Sheet10!A78-'Scenario 1'!C38 -> -0.002560436726
A42: Savings relative to default system (Net) | C42: =Sheet10!A79-'Scenario 1'!C39 -> -0.001576066017
A44: Gross Cost Per Tonne | C44: =C38/Inputs!C36 -> 399.17875
A45: Net Cost Per Tonne | C45: =C39/Inputs!C36 -> 287.1519804
A47: Savings to Industry (for stewards who recycle) | C47: =(Inputs!$C$50*G34)+Inputs!K28 -> -0.0007880479097
A48: Savings to Municipalities | C48: =((1-Inputs!$C$50)*G34)+Inputs!K28 -> -0.0007880479097
A50: Cost to Stewards who don't recycle | C50: =G34-F34 -> 0

Sheet Scenario 2
A2: Material
B3: Generation (Sheet 1) | C3: Contribution to total generation | D3: Savings to Industry if not Recycled | E3: Savings to Municipalities if not Recycled | F3: Savings to Stewards who don't recycle (because the material has been removed from the system) | G3: Cost to stewards who don't recycle (from having to subsidize the costs of other recyclable packaging and municipalities)
B4: (tonnes) | C4: % | D4: $/tonne | F4: $ | G4: $
A5: Newsprint - CNA/OCNA | B5: 217374.8181 | C5: =B5/$B$34 -> 0.1529092801 | D5: =Inputs!F7*Inputs!$C$50 -> 58.45920704 | E5: =Sheet10!G1*(1-Inputs!$C$50) -> 86.64403491 | F5: =IF(Inputs!C7=0,Sheet10!B1*'Scenario 2'!D5,"") ->  | G5: =IF(F5="","",C5*Inputs!$C$47) -> 
A6: Newsprint - Non-CNA/OCNA | B6: 148405.3807 | C6: =B6/$B$34 -> 0.1043936925 | D6: =Inputs!F8*Inputs!$C$50 -> 58.45920704 | E6: =Sheet10!G2*(1-Inputs!$C$50) -> 86.64403491 | F6: =IF(Inputs!C8=0,Sheet10!B2*'Scenario 2'!D6,"") ->  | G6: =IF(F6="","",C6*Inputs!$C$47) -> 
A7: Magazines and Catalogues | B7: 78908.18384 | C7: 0.05550685994 | D7: =Inputs!F9*Inputs!$C$50 -> 58.45920704 | E7: =Sheet10!G3*(1-Inputs!$C$50) -> 86.64403491 | F7: =IF(Inputs!C9=0,Sheet10!B3*'Scenario 2'!D7,"") ->  | G7: =IF(F7="","",C7*Inputs!$C$47) -> 
A8: Telephone Books | B8: 8328.91624 | C8: 0.005858859813 | D8: =Inputs!F10*Inputs!$C$50 -> 62.85197496 | E8: =Sheet10!G4*(1-Inputs!$C$50) -> 105.443467 | F8: =IF(Inputs!C10=0,Sheet10!B4*'Scenario 2'!D8,"") ->  | G8: =IF(F8="","",C8*Inputs!$C$47) -> 
A9: Other Printed Paper | B9: 128244.9524 | C9: 0.09021212076 | D9: =Inputs!F11*Inputs!$C$50 -> 63.30201327 | E9: =Sheet10!G5*(1-Inputs!$C$50) -> 92.65568828 | F9: =IF(Inputs!C11=0,Sheet10!B5*'Scenario 2'!D9,"") ->  | G9: =IF(F9="","",C9*Inputs!$C$47) -> 
A11: Corrugated Cardboard | B11: 169360.6425 | C11: 0.1191343788 | D11: =Inputs!F13*Inputs!$C$50 -> 194.8194871 | E11: =Sheet10!G7*(1-Inputs!$C$50) -> 241.2580384 | F11: =IF(Inputs!C13=0,Sheet10!B7*'Scenario 2'!D11,"") ->  | G11: =IF(F11="","",C11*Inputs!$C$47) -> 
A12: Boxboard | B12: 163987.5138 | C12: 0.1153547264 | D12: =Inputs!F14*Inputs!$C$50 -> 113.5535052 | E12: =Sheet10!G8*(1-Inputs!$C$50) -> 143.8356804 | F12: =IF(Inputs!C14=0,Sheet10!B8*'Scenario 2'!D12,"") ->  | G12: =IF(F12="","",C12*Inputs!$C$47) -> 
A13: Gable Top Cartons | B13: 14248.79104 | C13: 0.01002311307 | D13: =Inputs!F15*Inputs!$C$50 -> 548.9577998 | E13: =Sheet10!G9*(1-Inputs!$C$50) -> 585.2999452 | F13: =IF(Inputs!C15=0,Sheet10!B9*'Scenario 2'!D13,"") ->  | G13: =IF(F13="","",C13*Inputs!$F$48) -> 
A14: Paper Laminates | B14: 39205.14414 | C14: 0.02757831113 | D14: =Inputs!F16*Inputs!$C$50 -> 540.0976382 | E14: =Sheet10!G10*(1-Inputs!$C$50) -> 480.2380338 | F14: =IF(Inputs!C16=0,Sheet10!B10*'Scenario 2'!D14,"") ->  | G14: =IF(F14="","",C14*Inputs!$F$48) -> 
A15: Aseptic Containers | B15: 5819.7309 | C15: 0.004093808427 | D15: =Inputs!F17*Inputs!$C$50 -> 501.6741624 | E15: =Sheet10!G11*(1-Inputs!$C$50) -> 480.2380338 | F15: =IF(Inputs!C17=0,Sheet10!B11*'Scenario 2'!D15,"") ->  | G15: =IF(F15="","",C15*Inputs!$F$48) -> 
A17: PET Bottles | B17: 56847.71114 | C17: 0.03998872851 | D17: =Inputs!F19*Inputs!$C$50 -> 491.1972353 | E17: =Sheet10!G13*(1-Inputs!$C$50) -> 640.2749039 | F17: =IF(Inputs!C19=0,Sheet10!B13*'Scenario 2'!D17,"") ->  | G17: =IF(F17="","",C17*Inputs!$C$47) -> 
A18: HDPE Bottles | B18: 27597.63419 | C18: 0.01941317036 | D18: =Inputs!F20*Inputs!$C$50 -> 383.160102 | E18: =Sheet10!G14*(1-Inputs!$C$50) -> 598.1849985 | F18: =IF(Inputs!C20=0,Sheet10!B14*'Scenario 2'!D18,"") ->  | G18: =IF(F18="","",C18*Inputs!$C$47) -> 
A19: Plastic Film | B19: 54382.76276 | C19: 0.03825479499 | D19: =Inputs!F21*Inputs!$C$50 -> 1240.976611 | E19: =Sheet10!G15*(1-Inputs!$C$50) -> 947.3687102 | F19: =IF(Inputs!C21=0,Sheet10!B15*'Scenario 2'!D19,"") ->  | G19: =IF(F19="","",C19*Inputs!$F$48) -> 
A20: Plastic Laminates | B20: 35391.33064 | C20: 0.02489553729 | D20: =Inputs!F22*Inputs!$C$50 -> 1233.88191 | E20: =Sheet10!G16*(1-Inputs!$C$50) -> 947.3687102 | F20: =IF(Inputs!C22=0,Sheet10!B16*'Scenario 2'!D20,"") ->  | G20: =IF(F20="","",C20*Inputs!$F$48) -> 
A21: Polystyrene | B21: 21391.0016 | C21: 0.01504720134 | D21: =Inputs!F23*Inputs!$C$50 -> 838.423716 | E21: =Sheet10!G17*(1-Inputs!$C$50) -> 1146.048637 | F21: =IF(Inputs!C23=0,Sheet10!B17*'Scenario 2'!D21,"") ->  | G21: =IF(F21="","",C21*Inputs!$F$48) -> 
A22: Other Plastics | B22: 70790.314 | C22: 0.04979645777 | D22: =Inputs!F24*Inputs!$C$50 -> 601.1432138 | E22: =Sheet10!G18*(1-Inputs!$C$50) -> 693.9187385 | F22: =IF(Inputs!C24=0,Sheet10!B18*'Scenario 2'!D22,"") ->  | G22: =IF(F22="","",C22*Inputs!$F$48) -> 
A24: Steel Food & Beverage Cans | B24: 45285.5356 | C24: 0.03185547759 | D24: =Inputs!F26*Inputs!$C$50 -> 55.13569795 | E24: =Sheet10!G20*(1-Inputs!$C$50) -> 176.0771035 | F24: =IF(Inputs!C26=0,Sheet10!B20*'Scenario 2'!D24,"") ->  | G24: =IF(F24="","",C24*Inputs!$C$47) -> 
A25: Steel Aerosols | B25: 4078.742759 | C25: 0.002869134633 | D25: =Inputs!F27*Inputs!$C$50 -> 55.13569795 | E25: =Sheet10!G21*(1-Inputs!$C$50) -> 176.0771035 | F25: =IF(Inputs!C27=0,Sheet10!B21*'Scenario 2'!D25,"") ->  | G25: =IF(F25="","",C25*Inputs!$C$47) -> 
A26: Steel Paint Cans | B26: 5072.271953 | C26: 0.00356801887 | D26: =Inputs!F28*Inputs!$C$50 -> 55.13569795 | E26: =Sheet10!G22*(1-Inputs!$C$50) -> 176.0771035 | F26: =IF(Inputs!C28=0,Sheet10!B22*'Scenario 2'!D26,"") ->  | G26: =IF(F26="","",C26*Inputs!$C$47) -> 
A28: Aluminum Food & Beverage Cans | B28: 22551.77291 | C28: 0.01586372971 | D28: =Inputs!F30*Inputs!$C$50 -> -129.2324401 | E28: =Sheet10!G24*(1-Inputs!$C$50) -> 557.1764599 | F28: =IF(Inputs!C30=0,Sheet10!B24*'Scenario 2'!D28,"") ->  | G28: =IF(F28="","",C28*Inputs!$C$47) -> 
A29: Other Aluminum Packaging | B29: 4521.1978 | C29: 0.003180373452 | D29: =Inputs!F31*Inputs!$C$50 -> -129.2324401 | E29: =Sheet10!G25*(1-Inputs!$C$50) -> 557.1764599 | F29: =IF(Inputs!C31=0,Sheet10!B25*'Scenario 2'!D29,"") ->  | G29: =IF(F29="","",C29*Inputs!$C$47) -> 
A31: Clear Glass | B31: 74521.6429 | C31: 0.05242120898 | D31: =Inputs!F33*Inputs!$C$50 -> 63.91957366 | E31: =Sheet10!G27*(1-Inputs!$C$50) -> 67.99594091 | F31: =IF(Inputs!C33=0,Sheet10!B27*'Scenario 2'!D31,"") ->  | G31: =IF(F31="","",C31*Inputs!$C$47) -> 
A32: Coloured Glass | B32: 25277.37378 | C32: 0.01778101558 | D32: =Inputs!F34*Inputs!$C$50 -> 60.04080617 | E32: =Sheet10!G28*(1-Inputs!$C$50) -> 62.71250762 | F32: =IF(Inputs!C34=0,Sheet10!B28*'Scenario 2'!D32,"") ->  | G32: =IF(F32="","",C32*Inputs!$C$47) -> 
A34: Total | B34: =SUM(B5:B32) -> 1421593.366 | C34: =SUM(C5:C32) -> 1 | F34: =SUM(F5:F32) -> 0 | G34: =SUM(G5:G32) -> 0
A37: OUTPUTS
A38: Gross System Cost | C38: =Inputs!F47-'Scenario 2'!G34 -> 353075299.9
A39: Net System Cost | C39: =C38-(Inputs!E36*Inputs!C36) -> 253987146.3
A41: Savings relative to default system (Gross) | C41: =Sheet10!A78-'Scenario 2'!C38 -> -0.002560436726
A42: Savings relative to default system (Net) | C42: =Sheet10!A79-'Scenario 2'!C39 -> -0.001576066017
A44: Gross Cost Per Tonne | C44: =C38/Inputs!C36 -> 399.17875
A45: Net Cost Per Tonne | C45: =C39/Inputs!C36 -> 287.1519804
A47: Savings to Industry (for stewards who recycle) | C47: =(Inputs!$C$50*G34)+Inputs!K28 -> -0.0007880479097
A48: Savings to Municipalities | C48: =((1-Inputs!$C$50)*G34)+Inputs!K28 -> -0.0007880479097
A50: Cost to Stewards who don't recycle | C50: =G34-F34 -> 0
